Workbook

Sheet INSTRUCTIONS
B1: BEWARE | D1: OVERVIEW: | G1: SPECIAL NOTES | J1: PROGRAMMING NOTES
B2: Macros must be enabled for full functionality | E2: Each Journey is required to plan, monitor and report on their activities. The following forms | H2: If Macros are enabled, only the applicable worksheets and the
B3: Refer to Macros Setting and Macros Enabling | E3: are designed to help Journey Treasurers (JT) perform this function in a consistent and uniform | H3: applicable Budget rows will appear when "Inbound" or | J3: 1. | K3: Differences between the Excel and the Calc templates:
E4: fashion. | H4: "Outbound" is selected in cell B1 of the Budget worksheet
B5: Table of Content | J5: a. | K5: The Macros are written in a different language which are not
E6: There is usually more involved in the reporting of an Inbound Journey than an Outbound | H6: Macros must be enable for the Inbound Budget Report button to | K6: compatible with each other (specially the API):
A7: 1 | B7: Overview | C7: D1 | E7: Journey. The forms have been developed therefore to meet the needs of an Inbound Journey. | H7: work | K7: Excel macros are writen in Visual Basic for Applications
A8: 1.1 | B8: Budget tab | C8: D42 | E8: Having said that, the same forms can equally be used for an Outbound Journey, although some | K8: Calc macros are written in OpenOffice Basic
A9: 1.2 | B9: Event Planner tabs | C9: D63 | E9: of the elements may not be populated. | H9: All income should be recorded in column C of the journal as
A10: 1.3 | B10: Journal tab | C10: D70 | H10: either Ambassador Receipts, Host Receipts or Miscellaneous | J10: b. | K10: Inbound Budget Report macros
A11: 1.4 | B11: Outbound Detailed Tracking | C11: D107 | E11: We have developed a set of documents to allow the JT to properly plan, monitor and report on | H11: Receipts with a detailed description in column H. | J11: 1) | K11: For Excel – The set of macros is located in Module6
A12: 1.5 | B12: Inbound Detailed Tracking | C12: D116 | E12: the activities of their Journeys. For JTs with some computer skills and access to a computer
A13: 1.6 | B13: Inbound Budget Summary | C13: D134 | E13: and Microsoft Excel or LibreOffice Calc, the forms have also been somewhat automated | G13: SOFTWARE VERSIONS | J13: i. | K13: To access this set of macros, macros must be enabled, select
A14: 1.7 | B14: Summary-Source and Use of Fund | C14: D150 | E14: where much of the work has been preprogrammed. | H14: The Excel version of the templates were developed and work on | K14: “Developer” tab, select Macros,
A15: 1.8 | B15: Own Use | C15: D160 | H15: Excel 2007 in a windows environment and which has an xlsm | K15: select “Inbound_Budget_Report” which is the main macro,
A16: 2 | B16: Worksheet Protection | C16: D163 | E16: The yellow shaded cells of the worksheets are where user inputs data. | H16: extension. The templates were also tested on Excel for Macintosh. | K16: select “Edit”; then scroll up to view the global declarations.
A17: 3 | B17: Macros Setting | C17: D203 | E17: The light yellow shaded cells of the Budget and Event Planner tabs contains formulas to | H17: A tested version is also available for LibreOffice and OpenOffice Calc
A18: 3.1 | B18: Macros Enabling | C18: D335 | E18: automatically insert the number of Ambassadors from cell I2 of the Budget tab. These cells are unlocked | H18: in a windows environment for anyone who does not have Excel. | J18: ii. | K18: To connect the Inbound Budget Report button to the macro,
A19: 4 | B19: Special Notes | C19: G1 | E19: are unlocked allowing the user to insert different numbers as required. | H19: LibreOffice is a more updated version of OpenOffice. Both are free. | K19: Unprotect the Inbound Budget report worksheet,
A20: 5 | B20: Software Versions | C20: G13 | E20: The light blue shaded cells contain user instructions and are protected to prevent accidental | H20: Each is an office suite which basically mirrors the Microsoft Office | K20: Select the “Developer” tab, Click “Design Mode” on,
A21: 6 | B21: Template Versions | C21: G26 | E21: changes or erasures. | H21: suite with Calc being the spreadsheet. | K21: Right Click on the “Click Here to automatically fill-out this
E22: Unhighlighted cells contain formulas and are protected to prevent accidental changes or | H22: LibreOffice / OpenOffice requires a vesion of the templates different | K22: worksheet” button, Select “Assign Macro...”, select
E23: erasures. | H23: from Excel because they use a different language than Excel for | K23: “Inbound_Budget_Report” which is the main macro, then
H24: coding macros. | K24: click “Design Mode” off.
E25: We have also provided a sample completed documents which one can follow to see how
E26: everything links together. See Toolbox on FFO website | G26: TEMPLATE VERSIONS | J26: 2) | K26: For LibreOffice Calc – The set of macros for this function
K27: is located in Module1.
E28: The following instructions will detail and provide guidance for the completion of each of the | G28: 2019-02-24 VERSION 5
E29: documents. We have tried to make it as clear as possible and also make it applicable for both | J29: i. | K29: To access this set of macros, macros must be enabled, select
E30: manual and electronic completion. Each FORM or DOCUMENT to be completed manually | G30: General | K30: the “Tools” tab, select “Macros”, select “Edit Macros”
E31: is represented by a TAB in Excel. If you are familiar with Excel, you know what TABs are. If | G31: 1. | H31: Made formulas compatible to both Excel and Calc. | K31: Click on the “+” icon to expand the name of the spreadsheet
E32: you are not familiar with Excel, you only have to think of a TAB as representing a | G32: 2. | H32: Two versions of the template are required and created, one for Excel | K32: such as “JT_Financial_Templates_v_5.ods”, click on the
E33: DOCUMENT. EG the Budget Tab is the same as saying the Budget Document. | H33: and the other for Calc because: | K33: “+” icon of “VBAProject”, click on the “+” icon of
H34: a) they each use different mean to create the active button that | K34: “Modules”, click on the “+” icon of “Module1”, double
E35: There are two main documents to be completed by the JT, the Budget and Journal documents. | H35: initiate the macros for filling the Inbound Budget Report, | K35: click on “Inbound_Budget_Report” which is the main
E36: There is also detailed accounting documents to manage payment and expenses of FFO | H36: b) they use a different way to link the required trigger to the macro | K36: macro for this function. then scroll up to view the global
E37: personnel (one for outbound and a different one for inbound journeys). For inbound, Event | H37: used for diplaying only the Budget elements associated with either | K37: declarations.
E38: Planners are available to help plan more complex events that are represented in the Budget as a | H38: an Inbound or an Outbound journey;
E39: single line as opposed to the many, many components of the event. The following explains each | H39: c) they use a different programming language to code the required | J39: ii. | K39: To connect the Inbound Budget Report button to the macro,
E40: documents. | H40: macros; and | K40: unprotect the Inbound Budget Report worksheet,
H41: d) different instructions are required nad provided to amend the | K41: select the “Tools” tab, select “Forms”,
D42: BUDGET tab | H42: name of each Event planner tab. | K42: select “Design Mode” to turn it on, right click on the button,
E43: The Budget tab contains the results of the 6 Event Plans and some standard revenues and | K43: select “Control...”, select “Event” tab, select the “...”
E44: expenses (where the first column indicates weather the item applies to inbound, outbound or | G44: Budget tab | K44: button for “Execute action”, left click on “Macro...”,
E45: both types of journeys), plus there are sufficient additional spaces to add other revenues and | G45: 1. | H45: Minor errors corrected | K45: Click on the “+” icon to expand the name of the spreadsheet
E46: expenses that are not complex in nature. Items similar to gift bags, photos, and booklets. | G46: 2. | H46: Added a field in cell I2 to input the number of ambassador such that | K46: such as “JT_Financial_Templates_v_5.ods”, click on the
H47: a change to this number would be replicated in cells D15, D21, D22, | K47: “+” icon of “VBAProject”, click on “Module1”, click on
E48: It also contains a section setup to calculate exchange rate conversion for both CAD to USD for | H48: D25, D30 and G19 when the associated condition is met. | K48: “Inbound Budjet Report”, click “OK”, click “OK”, close
E49: an inbound exchange and various currencies to CAD for an outbound exchange. | G49: 3. | H49: Created the light yellow cells which are not locked and contain | K49: the “Properties: Push Button” menu; select the “Tools” tab,
E50: Budgeting is the single most important part of having a successful journey. Poor budgeting | H50: a formula that the user can overide by entering either another | K50: Select “Forms”, and select “Design Mode” to turn it off.
E51: (planning) can lead to some unpleasant surprises. The purpose of the Event planner is NOT | H51: formula or a number.
E52: to provide the AC/HC/JT with an all encompassing list. Rather, it is to provide a memory | J52: c. | K52: Budget Inbound/Outbound Selection macro
E53: jog so one thinks of the possible things they need to plan for. | G53: Journal tab
G54: 1. | H54: Middle aligned the text in rows 3 to 76 for better optic when the | J54: 1) | K54: For Excel – the macro is located on Sheet2(BUDGET)
E55: For example, some of the things that have been forgotten in the past include: | H55: comment in a row requires multiple lines.
E56: -forgetting to include taxes | G56: 2. | H56: Amended the title of column D, E and F | J56: i. | K56: To access this macros, macros must be enabled, right click
E57: -forgetting to include exchange rates or take into account fluctuating exchange rates | G57: 3. | H57: Formatted columns I and J, to ease the reconciliation with the bank | K57: on the “BUDGET” tab, and select “View Code”.
E58: -forgetting to include tips for staff | H58: statement
E59: -forgetting to include miscellaneous items like postage/stationary/etc. | J59: ii. | K59: The connection to the macro is related to the name of the
G60: Event Planner tabs | K60: macro, in this case, the macro is accessed when the content
E61: Note that cell B1 contains a drop-down list to select either Inbound or Outbound | G61: 1. | H61: Cell F19 has a formula to get the number of Ambassadors from the | K61: of a cell in the “BUDGET” tab is changed. Access the
H62: Cell I2 of the Budget worksheet. | K62: macro as per c. 1) i. above.
D63: EVENT Planner tabs | K63: In the left dropdown menu select “Worksheet”, in the right
E64: There are 6 Event Planning tabs. Use these tabs to plan more complex events such as the | G64: Outbound Details | K64: drop down menu, select the type of trigger, in this case
E65: Welcome and Farewell parties. The Event Planners are detailed enough to ensure one captures | G65: 1. | H65: Reordered and added more payments and expenses columns | K65: “Change” which created the stub into which to write the
E66: all anticipated expenses and revenues. There are blank lines for additional items or one can | G66: 2. | H66: Locked the uncoloured cells | K66: macro. Since the required actions are to be peformed only
E67: change the description of an unused item. Place the name of the event in the cell C1. All data | G67: 3. | H67: More entries added to Shared cost items (L40 - M51) | K67: when the content of cell “B1” is changed, therefore the first
E68: transfers to the Budget worksheet. | G68: 4. | H68: Corrected the formula of cell M52 to include the first row of Shared | K68: lines of code is to bypass the main body of the code when
H69: cost items as part of the addition. | K69: there are no change to the content of cell “B1”.
D70: JOURNAL tab
E71: Once the Budget is completed and approved by the Journey's planning committee, then the next | G71: 2018-06-10 VERSION 4 | J71: 2) | K71: For LibreOffice Calc – The set of macros for this function
E72: element is to maintain a Journal of actual receipts and expenditures. This Journal is similar to | K72: is located in Module1.
E73: a bank book that records the entries of the journey. It starts with an opening balance and then | G73: Instructions tab
E74: one simply adds cheques or deposits to the Journal as they occur. | G74: 1. | H74: Added the description for the new tab Inbound Budget Summary | J74: i. | K74: To access this set of macros, macros must be enabled, select
K75: the “Tools” tab, select “Macros”, select “Edit Macros”
E76: When completing, it is suggested that the Deposit slips be numbered starting with 101 (to | G76: Budget tab | K76: Click on the “+” icon to expand the name of the spreadsheet
E77: difference them from cheque #) and that these numbers be used in the Journal entry as cross- | G77: 1. | H77: Added input field in F2 to enter departure date | K77: such as “JT_Financial_Templates_v_5.ods”, click on the
E78: references in the Deposit # column. If writing a cheque, include the cheque number in the | G78: 2. | H78: Amended formulas of cells I6-I14 such that the number of Hosts will | K78: “+” icon of “VBAProject”, click on the “+” icon of
E79: cheque number column but also include the invoice/receipt number of the document that | H79: be displayed only when the filled entries of an action planned tab | K79: “Modules”, click on the “+” icon of “Module1”, double
E80: supports the payment. | H80: contain the same number of Hosts | K80: click on “Budget_Cell_B1_Content_Change” which is the
G81: 3. | H81: Amended formulas of cells J6-J14 such that the total of the Host cost | K81: main macro for this function. Then scroll up to view the
E82: There are two additional columns, an Item column and a Description column: | H82: unit prices will be displayed when the filled entries of an action | K82: global declarations.
H83: planned tab contain the same number of Hosts
E84: The Item column is special. If you look at the bottom of the page under the Journal, you will | G84: 4. | H84: Amended formulas of cell M50 to roundup to the next cent the | J84: ii. | K84: The connection of the macro is trough a Calc event, in this
E85: note the column contains the budget descriptions is also called Item. Whenever one inputs an | H85: total Ambassadors' cost divided by the number of Ambassadors | K85: case, the macro is accessed when the content of a Budget tab
E86: entry in the Journal, they need to indicate to which budget Item it applies. The spelling must | G86: 5. | H86: Amended formulas of cell M49 to roundup to the next dollar the | K86: cell is changed.
E87: be exact. This allows a Summary Source and Use of Funds statement to be produced | H87: Ambassador's cost in Canadian dollar divided by the exchange rate | K87: To connect the macro to “Change” event of the BUDGET
E88: automatically. An easy way to match the exact spelling is enter the cell such as "=C$84" which | G88: 6. | H88: Amended formulas of cell M46 to be the rounded Ambassador's cost | K88: tab, Right click on the Budget tab, select “Sheet Event...”,
E89: means the content of column C row 84 for "Ambassador Receipts". | H89: multiplied by the number of Ambassadors | K89: Scroll down the set of events and select “Content changed”,
G90: 7. | H90: Put label on left of input cells for Journey # and arrival/departure | K90: left click on the “Macro...” button, Click on the “+” icon to
E91: The Description column allows one to provide some detail of what the entry represents. | H91: dates | K91: expand the name of the spreadsheet such as
G92: 8. | H92: Added currency conversion area for second outbound hosting | K92: “JT_Financial_Templates_v_5.ods”, click on the “+” icon of
E93: There are 75 lines for input which should be sufficient. Additional lines can be added | G93: 9. | H93: Added ability to select currency type for both outbound hostings | K93: “VBAProject”, click on the “+” icon of “Modules”, click
E94: once the Journal sheet is unprotected (see row 8 above) but one must remember to copy down | K94: on “Module1”, Left click on
E95: the formulas in the Accumulated Total column. | G95: Journal tab | K95: “Budget_Cell_B1_Content_Change” which is the main
G96: 1. | H96: Removed "FFO Journey Registration Fee" and | K96: macro for this function. Then click the “OK” button to exit
E97: At the bottom of the Journal, there is a Summary that adds all numbers according to the Item | H97: "Assured Space Deposit" from list of expense items because they are | K97: the “Macro Selector” panel and again to exit the
E98: descriptions typed. Note however that this only totals Items that the item name agrees with an | H98: income items to be recorded as "Ambassador Receipts" | K98: “Assign Action” panel.
E99: Item name from the Budget. Therefore, if one types an Item that is not in the Budget (or not | G99: 2. | H99: Added 25 extra input lines
E100: spelled the same), it will not add it in the Summary on this tab and it will generate the error | J100: d. | K100: For the Calc version, special instructions on how to rename
E101: message "ERROR, Item name does not match Budget", highlighted in red. If all Items are | G101: Event Planner tabs | K101: each Event Planner worksheet are provided in each Event
E102: typed properly, then the message "Item names match Budget" highlighted in green, will be | G102: 1. | H102: Replaced "Ambassador" for the event name in cell G19 | K102: Planner worksheet.
E103: displayed. | G103: 2. | H103: Locked cell H19 and amended its formula to subtract from the total
H104: event cost, the Ambassador's cost and the miscellaneous sources of | J104: e. | K104: Note that I made all the changes to the macros, the button
E105: If it is discovered that an item was missed in the budgetting process, just add the item name in | H105: funds, then dividing the result by the number of ambassadors | K105: and the links to the macros using LibreOffice, that is why in
E106: the Budget tab without a budget amount which will result in a "Item names match Budget" message. | G106: 3. | H106: Added two extra Host cost entries to account for up to three cost | K106: the above, I did not provide the instructions for OpenOffice.
E107: message. | H107: activities attended by Hosts during an event (cells F25-I26)
G108: 4. | H108: Cells G24-G26 were unlocked to allow user entry of the
D109: Outbound Detailed Tracking | H109: Ambassador's cost item which must match one of the cost items
E110: This tab tracks outbound journey income and expenses associated with each Ambassador. | H110: listed in column B, otherwise an error message is displayed
E111: The crosscheck indicate an error resulting in rounding the balance amount to two decimal.
E112: If the cross check is less than zero, 0ne cent must be substracted from the balance of one or | G112: Inbound Budget Report tab
E113: more individual untill the crosscheck reach zero. If rhe crosscheck is greater than zero then the | G113: 1. | H113: New tab added to provide concise budget information to present at
E114: cent must be added. | H114: the committee meetings
D116: Inbound Detailed Tracking | G116: Summary-Source and Use of Funds tab
E117: This tab tracks incomes and expenses by individual FFO member signing-up/participating in BUT NOT by | G117: 1. | H117: Removed "FFO Journey Registration Fee" and
E118: the inbound journey events that are not free of charge; including any subsaequen tcancellations. | H118: "Assured Space Deposit" from list of expense items because they are
H119: income items accounted as "Ambassador Receipts"
E120: In row 1, replace "Event Name" with the actual event name
E121: In row 2, replace "Cost/pers." with event actual cost per person when known | G121: 2018-05-31 VERSION 3B
E122: In row 3-60, enter the participanl's name and the amount paid for each event they participate
E123: In the remark column identify the bank deposit the payment is part. If an individual makes | G123: Instructions tab
E124: two payments that are part of different bank deposits include the amount for each deposit. | G124: 1. | H124: Added a note for cell B1 drop-down list
E126: If an individual subsequently cancel from an event and a full amount for an event is refunded | G126: Budget tab
E127: in accordance with the JT guidelines, indicate the activity(ites) being withdrawn and reference | G127: 1. | H127: Moved the critical dates to enable a longer Journey name
E128: the refund cheque; then delete that amount paid from the cancelled activiries. | G128: 2. | H128: Amended Column A to indicate whether the budget line is
H129: applicable to Inbound, Outbound or both types of journey
E130: If an individual pays for another person, the paid activity(ies) are marked as if the individual | G130: 3. | H130: Amended cell B1 into a drop-down list to choose eiher Inbound or
E131: paid for himself, but indicate in the remark column the amount and who actually made the | H131: Outbound. Cells W2-W4 contain the list
E132: payment. | G132: 4. | H132: Added missing formula in cell E17, H17 & N17
G133: 5. | H133: Unlocked cells O15 to O20 for data input
D134: Inbound Budget Summary | G134: 6. | H134: Amended formula of cells M46, M49, M56 & M59 to round up
E135: This tab provides the budget information in a concise format for presentation at committee | H135: to the nearest dollar.
E136: meetings. | G136: 7. | H136: Switched B30 with B31 to keep B31 and B32 together
G137: 8. | H137: Locked cells C18, C31-C32, D18, D31-D32, F18, F31-F32, G18,
E138: An error will be displayed and the cell selected for: | H138: G31-G32, I23-I32, J23-J32, L18, L30-L32, M18, M30-M32, O18
E139: a) a budget worksheet without an arrival or departure date, an inbound exchange rate or | H139: and O31-O32 because B18, B31 and B32 budget names are required
E140: number of Ambassadors; and | H140: for journaling purposes only.
E141: b) an event worksheet containing expenses without the event date | G141: 9. | H141: Deleted the formula from E18-E20, E31-E32, H18, H31-H32,
E142: and the report will abort to allow the user to make the appropriate change. | H142: K23-K32 and N18, N30-N32 because associated C & D, F & G,
H143: I & J and L & M are locked and contain no data
E144: Note For the button initiating the macros to work, macros must be enabled. With the | G144: 10. | H144: Frozen pane at C6 such that top and left headers are always in view
E145: Disable macros with notification setting, you get a security alert if there are macros present.
E146: This way, you can choose to enable these macros on an as required basis. | G146: Event Planner tabs
E147: Macro settings are located in the Trust Centre under Excel options accessible through the Office Button (top left corner) | G147: 1. | H147: Amended cell B2 to contain its tab name followed by the
E148: Office Button (top left corner). | H148: abbreviated day of the week of the date in cell B1 and the date from
H149: cell B1, if B1 contains a valid date. Otherwise "Above date is
D150: SUMMARY-SOURCE AND USE OF FUNDS tab | H150: invalid" will be displayed.
E151: The Summary-Source and Use of Funds tab generates a report that takes budgeted numbers
E152: from the Budget tab and actual numbers from the Journal tab and consolidates everything into | G152: Summary-Source and Use of Funds tab
E153: a single Journey Report showing Actual vs Budgets and Variances. This report is entirely | G153: 1. | H153: Corrected the formula of cells E37-E44
E154: formula driven and does not require any input.
G155: Outbound Details
E156: If however you are completing the documents by hand, this report will also need to be | G156: 1. | H156: Corrected the formula in cells O3-O8
E157: completed. The objective is to categorize and add up all entries for each category to be | G157: 2. | H157: Added the double line below cell O26
E158: compared to the same categories in the budget. | G158: 3. | H158: Reformatted the Withdrawal area - Cells D33 - J51
D160: Own Use Tab | G160: Inbound Details
E161: You can add additional tab(s) to track any other details, as required | G161: 1. | H161: Amended the number format of E3-E71 and B73-I73 to display any
H162: negative numbers in red
D163: Worksheet Protection
E164: The spreadsheets are protected to prevent accidental changes or erasures of formulas. | G164: 2018-05-04 VERSION 3
E165: If required, they can be unprotected for Excel by going to Home/Format/Unprotect Sheet;
E166: for LibreOffice Calc by going to Tools/Protect Sheet… and | G166: Instructions tab
E167: for OpenOffice Calc by going to Tools/Protect Document/Sheet… | G167: 1. | H167: Added section for template versions describing the changes
E168: There are no passwords required. | H168: implemented
G169: 2. | H169: Reformatted to one line of text per row
E170: Excel | G170: 3. | H170: Corrected the explanation of the Journal tab error message
G171: 4. | H171: Added the explanation to obtain a crosscheck = 0 for the Outbound
H172: Details tab
G174: Budget tab
E175: LibreOffice Calc | G175: 1. | H175: Amended the background of cell containing instructions to light blue
G177: Journal tab
G178: 1. | H178: Amended the background of cell containing instructions to light blue
E179: OpenOffice Calc
G180: Event Planner tabs
G181: 1. | H181: Amended the background of cell containing instructions to light blue
E183: Use the same sequence to reprotect the unprotected worksheet: | G183: Outbound Details tab
E184: for Excel by going to Home / Format / Protect Sheet and click "OK" on the popup dialog; | G184: 1. | H184: Inserted Column E for FFI payments
E185: for LibreOffice Calc by going to Tools / Protect Sheet… and click "OK" on the popup | G185: 2. | H185: Renamed Column F for Host program payment
E186: dialog; and | G186: 3. | H186: Inserted Column L as an extra column for possible other expenses
E187: for OpenOffice Calc by going to Tools / Protect Document / Sheet… and click "OK" on | G187: 4. | H187: Amended the formula of each cells of column M to include the
E188: the popup dialog. | H188: added columns E and L
G189: 5. | H189: Added the crosscheck and associated formula and explanation of the
E190: Excel | H190: result
G192: Inbound Details tab
G193: 1. | H193: Amended the background of cell containing instructions to light blue
G194: 2. | H194: Amended the format to accounting for row 2, columns B through I
E195: LibreOffice Calc | G195: 3. | H195: Amended column K to display negative numbers in red
G196: 4. | H196: Amended the "Event Surplus/Deficit" row to not show an error
H197: when no event data is entered in the column
G198: 5. | H198: Added the error "Row 2, event actual cost/pers. is missing" when
E199: OpenOffice Calc | H199: event payment is entered but not the actual cost per individual
G201: 2018-04-13 VERSION 2
D203: Macros Setting | G203: Budget Tab
G204: 1. | H204: Amended cell B1 to accept the input of the journey type (Inbound
D205: 1. | E205: Macros must be enabled for: | H205: or Outbound)
D206: a. | E206: applicable worksheets to appear when "Inbound" or "Outbound" is selected in cell B1 of | G206: 2. | H206: Amended cell D1 to accept the input of the journey number
E207: the Budget worksheet; and | H207: Amended cell B3 to display: Budget for 'journey type from cell B1'
D208: b. | E208: the Inbound Budget Report to work | H208: Journey # 'journey number from cell D1', 'Club name(s) from cell B2'
G209: 3. | H209: Amended cell I1 to accept the input of the journey start date with
... 40 more rows

Sheet BUDGET
B1: Choose Inbound or Outbound | D1: Journey #: | E1: 41248 | F1: Arrival date: | G1: 2020-02-05 | H1: Number of Ambassadors: | K1: 60 days prior start: | L1: =IF(ISNUMBER(G1),G1-60,"") -> 2019-12-07 | N1: 6 months prior start: | O1: =IF(ISNUMBER(G1),G1-180,"") -> 2019-08-09 | W1: B1 Drop Down menu list | X1: K58 & K63 Drop Down menu list | Y1: Prev. cell B1 content
A2: Club name: | B2: FF Saturnalia | D2: Date format: | E2: dd mmm yyyy | F2: Departure date: | G2: 2020-02-12 | I2: 15 | K2: 90 days prior start: | L2: =IF(ISNUMBER(G1),G1-90,"") -> 2019-11-07 | W2: Choose Inbound or Outbound | X2: Click to Select Currency | Y2: Choose Inbound or Outbound
B3: ="BUDGET for " & IF(B1 = "Choose Inbound or Outbound","",B1& " ") & "Journey " &IF(ISNUMBER(E1),"# "&E1& ", "& B2,"") -> BUDGET for Journey # 41248, FF Saturnalia | W3: Inbound | X3: American Dollar (USD)
D4: ESTIMATED EXPENSE BUDGET | G4: TO COLLECT FROM AMBASSADORS | J4: TO COLLECT FROM HOSTS | M4: Miscellaneous Funds | P4: Remarks | W4: Outbound | X4: European Euro (EUR)
A5: Inbound Outbound or both | B5: Item | D5: Qty | E5: Unit Price | F5: Total Cost | G5: Qty | H5: Unit Price | I5: Total Funds from Ambassadors | J5: Qty | K5: Unit Price | L5: Total Funds from Hosts | M5: Qty | N5: Unit Price | O5: Total Misc. Funds | X5: New Zealand Dollar (NZD)
A6: Inbound | B6: =Welcome!G19 -> Welcome | F6: =IF(Welcome!N$21>0,Welcome!N$21,"") -> 498.88 | G6: =IF(Welcome!H$19>0,Welcome!F$19," ") -> 15 | H6: =IF(Welcome!H$19>0,Welcome!H$19," ") -> 23.92533333 | I6: =IF(Welcome!N$7>0,Welcome!N$7,"") -> 358.88 | L6: =IF(Welcome!N$8>0,Welcome!N$8,"") -> 140 | O6: =IF(Welcome!N$9>0,Welcome!N$9,"") ->  | X6: Australian Dollar (AUD)
A7: Inbound | B7: ='Escapade Eskimo'!G19 -> Escapade Eskimo | F7: =IF('Escapade Eskimo'!N$21>0,'Escapade Eskimo'!N$21,"") -> 1555 | G7: =IF('Escapade Eskimo'!H$19>0,'Escapade Eskimo'!F$19," ") -> 15 | H7: =IF('Escapade Eskimo'!H$19>0,'Escapade Eskimo'!H$19," ") -> 85.33333333 | I7: =IF('Escapade Eskimo'!N$7>0,'Escapade Eskimo'!N$7,"") -> 1280 | L7: =IF('Escapade Eskimo'!N$8>0,'Escapade Eskimo'!N$8,"") -> 275 | O7: =IF('Museum of History'!N$9>0,'Museum of History'!N$9,"") -> 
A8: Inbound | B8: ='Museum of History'!G19 -> Museum of History | F8: =IF('Museum of History'!N$21>0,'Museum of History'!N$21,"") -> 675 | G8: =IF('Museum of History'!H$19>0,'Museum of History'!F$19," ") -> 15 | H8: =IF('Museum of History'!H$19>0,'Museum of History'!H$19," ") -> 38.66666667 | I8: =IF('Museum of History'!N$7>0,'Museum of History'!N$7,"") -> 580 | L8: =IF('Museum of History'!N$8>0,'Museum of History'!N$8,"") -> 95 | O8: =IF('Curling-Ice fishing'!N$9>0,'Curling-Ice fishing'!N$9,"") -> 
A9: Inbound | B9: ='Curling-Ice fishing'!G19 -> Curling-Ice fishing | F9: =IF('Curling-Ice fishing'!N$21>0,'Curling-Ice fishing'!N$21,"") -> 550.98 | G9: =IF('Curling-Ice fishing'!H$19>0,'Curling-Ice fishing'!F$19," ") -> 15 | H9: =IF('Curling-Ice fishing'!H$19>0,'Curling-Ice fishing'!H$19," ") -> 35.532 | I9: =IF('Curling-Ice fishing'!N$7>0,'Curling-Ice fishing'!N$7,"") -> 532.98 | L9: =IF('Curling-Ice fishing'!N$8>0,'Curling-Ice fishing'!N$8,"") -> 18 | O9: =IF(Winterlude!N$9>0,Winterlude!N$9,"") -> 
A10: Inbound | B10: =Winterlude!G19 -> Winterlude | F10: =IF(Winterlude!N$21>0,Winterlude!N$21,"") -> 150 | G10: =IF(Winterlude!H$19>0,Winterlude!F$19," ") -> 15 | H10: =IF(Winterlude!H$19>0,Winterlude!H$19," ") -> 10 | I10: =IF(Winterlude!N$7>0,Winterlude!N$7,"") -> 150 | L10: =IF(Winterlude!N$8>0,Winterlude!N$8,"") ->  | O10: =IF('Omega Park'!N$9>0,'Omega Park'!N$9,"") -> 
A11: Inbound | B11: ='Omega Park'!G19 -> Omega Park | F11: =IF('Omega Park'!N$21>0,'Omega Park'!N$21,"") -> 1527 | G11: =IF('Omega Park'!H$19>0,'Omega Park'!F$19," ") -> 15 | H11: =IF('Omega Park'!H$19>0,'Omega Park'!H$19," ") -> 91.66666667 | I11: =IF('Omega Park'!N$7>0,'Omega Park'!N$7,"") -> 1375 | L11: =IF('Omega Park'!N$8>0,'Omega Park'!N$8,"") -> 152 | O11: =IF(Parliament!N$9>0,Parliament!N$9,"") -> 
A12: Inbound | B12: =Parliament!G19 -> Parliament | F12: =IF(Parliament!N$21>0,Parliament!N$21,"") -> 150 | G12: =IF(Parliament!H$19>0,Parliament!F$19," ") -> 15 | H12: =IF(Parliament!H$19>0,Parliament!H$19," ") -> 10 | I12: =IF(Parliament!N$7>0,Parliament!N$7,"") -> 150 | L12: =IF(Parliament!N$8>0,Parliament!N$8,"") ->  | O12: =IF('Event 8'!N$9>0,'Event 8'!N$9,"") -> 
A13: Inbound | B13: ='Event 8'!G19 -> Event 8 | F13: =IF('Event 8'!N$21>0,'Event 8'!N$21,"") ->  | G13: =IF('Event 8'!H$19>0,'Event 8'!F$19," ") ->  | H13: =IF('Event 8'!H$19>0,'Event 8'!H$19," ") ->  | I13: =IF('Event 8'!N$7>0,'Event 8'!N$7,"") ->  | J13: =IF('Event 8'!F$24>0,IF('Event 8'!F$28>0,IF('Event 8'!F$24='Event 8'!F$28,IF('Event 8'!F$29>0,IF('Event 8'!F$24='Event 8'!F$29,'Event 8'!F$24,""),'Event 8'!F$24),""),'Event 8'!F$24),"") ->  | K13: =IF('Event 8'!F$24>0,IF('Event 8'!F$28>0,IF('Event 8'!F$24='Event 8'!F$28,IF('Event 8'!F$29>0,IF('Event 8'!F$24='Event 8'!F$29,'Event 8'!H$24+'Event 8'!H$28+'Event 8'!H$29,""),'Event 8'!H$24+'Event 8'!H$28),""),'Event 8'!H$24),"") ->  | L13: =IF('Event 8'!N$8>0,'Event 8'!N$8,"") ->  | O13: =IF(Farewell!N$9>0,Farewell!N$9,"") -> 
A14: Inbound | B14: =Farewell!G19 -> Farewell | F14: =IF(Farewell!N$21>0,Farewell!N$21,"") -> 1200 | G14: =IF(Farewell!H$19>0,Farewell!F$19," ") -> 15 | H14: =IF(Farewell!H$19>0,Farewell!H$19," ") -> 40 | I14: =IF(Farewell!N$7>0,Farewell!N$7,"") -> 600 | J14: =IF(Farewell!F$24>0,IF(Farewell!F$28>0,IF(Farewell!F$24=Farewell!F$28,IF(Farewell!F$29>0,IF(Farewell!F$24=Farewell!F$29,Farewell!F$24,""),Farewell!F$24),""),Farewell!F$24),"") -> 15 | K14: =IF(Farewell!F$24>0,IF(Farewell!F$28>0,IF(Farewell!F$24=Farewell!F$28,IF(Farewell!F$29>0,IF(Farewell!F$24=Farewell!F$29,Farewell!H$24+Farewell!H$28+Farewell!H$29,""),Farewell!H$24+Farewell!H$28),""),Farewell!H$24),"") -> 40 | L14: =IF(Farewell!N$8>0,Farewell!N$8,"") -> 600 | O14: =IF('Escapade Eskimo'!N$9>0,'Escapade Eskimo'!N$9,"") ->  | X14: UK Pound Sterling (GBP)
A15: Inbound | B15: Gift Bags | D15: =IF(E15 > 0,I2,"") -> 15 | E15: 8 | F15: =IF(ISNUMBER(D15),IF(ISNUMBER(E15),E15*D15,""),"") -> 120 | G15: =IF(D15 > 0,D15,"") -> 15 | H15: =IF(E15 > 0,E15,"") -> 8 | I15: =IF(ISNUMBER(G15),IF(ISNUMBER(H15),H15*G15,""),"") -> 120 | L15: ="" ->  | O15: =IF(ISNUMBER(M15),IF(ISNUMBER(N15),N15*M15,""),"") -> 
A16: Inbound | B16: Photographs | F16: =IF(ISNUMBER(D16),IF(ISNUMBER(E16),E16*D16,""),"") ->  | G16: =IF(D16 > 0,D16,"") ->  | H16: =IF(E16 > 0,E16,"") ->  | I16: =IF(ISNUMBER(G16),IF(ISNUMBER(H16),H16*G16,""),"") ->  | L16: ="" ->  | O16: =IF(ISNUMBER(M16),IF(ISNUMBER(N16),N16*M16,""),"") -> 
A17: Inbound | B17: Parking | F17: =IF(ISNUMBER(D17),IF(ISNUMBER(E17),E17*D17,""),"") ->  | G17: =IF(D17 > 0,D17,"") ->  | I17: =IF(ISNUMBER(G17),IF(ISNUMBER(H17),H17*G17,""),"") ->  | L17: ="" ->  | O17: =IF(ISNUMBER(M17),IF(ISNUMBER(N17),N17*M17,""),"") -> 
A18: Inbound | B18: Host Refund | L18: ="" ->  | O18: ="" ->  | P18: Item name required for journaling purposes only
A19: Outbound | B19: Ambassador Receipts | F19: ="" ->  | G19: =IF(B1="Outbound",IF(I2>0,I2,""),"") ->  | H19: 35 | I19: =IF(ISNUMBER(G19),IF(ISNUMBER(H19),H19*G19,""),"") ->  | L19: ="" ->  | O19: ="" ->  | P19: FFO Journey Registration Fee
A20: Outbound | B20: Ambassador Receipts | F20: =" " ->  | H20: 300 | L20: ="" ->  | O20: ="" ->  | P20: FFO Assured Space Deposit
A21: Outbound | B21: FFI Fees | D21: =IF(E21 > 0,I2,"") ->  | F21: =IF(ISNUMBER(D21),IF(ISNUMBER(E21),E21*D21,""),"") ->  | G21: =IF(D21 > 0,D21,"") ->  | L21: ="" ->  | O21: =IF(ISNUMBER(M21),IF(ISNUMBER(N21),N21*M21,""),"") -> 
A22: Outbound | B22: Hosting Fees | D22: =IF(E22 > 0,I2,"") ->  | L22: ="" -> 
A23: Outbound | B23: Post Journey Party | L23: ="" -> 
A24: Both | B24: Wire Transfer Fee | D24: 1 | E24: 14 | F24: 14 | G24: =IF(B$1 <> "Outbound",IF(D24 > 0,D24,""),"") -> 1 | H24: =IF(G24 <>"",E24,"") -> 14 | I24: 14 | L24: ="" -> 
A25: Both | B25: Ambassador Booklets | D25: =IF(E25 > 0,I2,"") -> 15 | E25: 2.5 | F25: 37.5 | G25: =IF(B$1 <> "Outbound",IF(D25 > 0,D25,""),"") -> 15 | H25: 2.5 | I25: 37.5 | L25: ="" -> 
A26: Both | B26: Host Booklets | J26: =IF($B$1="Inbound",IF(D26 > 0,D26,""),"") ->  | K26: =IF(J26<>"",E26,"") ->  | L26: =IF(ISNUMBER(J26),IF(ISNUMBER(K26),K26*J26,""),"") -> 
A27: Both | B27: Club Gift | D27: 1 | E27: 15 | F27: 15 | G27: =IF(B$1 <> "Outbound",IF(D27 > 0,D27,""),"") -> 1 | H27: 15 | I27: 15 | L27: ="" -> 
A28: Both | B28: Bank Fees | D28: 5 | E28: 2.5 | F28: 12.5 | G28: 5 | H28: 2.5 | I28: 12.5 | L28: ="" -> 
A29: Both | B29: Committee Expenses | L29: ="" -> 
A30: Both | B30: Contingency | D30: =IF(E30 > 0,I2,"") -> 15 | E30: 10 | F30: 150 | G30: 15 | H30: 10 | I30: 150 | L30: ="" ->  | M30: ="" ->  | O30: ="" -> 
A31: Both | B31: Ambassador Refund | F31: ="" ->  | I31: ="" ->  | L31: ="" ->  | O31: ="" ->  | P31: Item name required for journaling purposes only
A32: Both | B32: Surplus to FFO | F32: ="" ->  | I32: ="" ->  | L32: ="" ->  | O32: ="" ->  | P32: Item name required for journaling purposes only
B33: Memory Stick | D33: =I2 -> 15 | E33: 2 | F33: =IF(ISNUMBER(D33),IF(ISNUMBER(E33),E33*D33,""),"") -> 30 | G33: =IF(B$1 <> "Outbound",IF(D33 > 0,D33,""),"") -> 15 | H33: =IF(G33 <>"",E33,"") -> 2 | I33: =IF(ISNUMBER(G33),IF(ISNUMBER(H33),H33*G33,""),"") -> 30 | L33: =IF(ISNUMBER(J33),IF(ISNUMBER(K33),K33*J33,""),"") ->  | O33: =IF(ISNUMBER(M33),IF(ISNUMBER(N33),N33*M33,""),"") -> 
B34: Exp blank 2
B35: Exp blank 3
B36: Exp blank 4
B37: Exp blank 5
B38: Exp blank 6
B39: Exp blank 7
B40: TOTALS | F40: =SUM(F6:F39) -> 6685.86 | I40: =SUM(I6:I39) -> 5405.86 | L40: =SUM(L6:L39) -> 1280 | O40: =SUM(O6:O39) -> 0
B42: =+B3 -> BUDGET for Journey # 41248, FF Saturnalia | I42: Exchange Rate Conversion
D43: Source of Funds
E44: Ambassador Receipts | F44: =+I40 -> 5405.86 | I44: Inbound
E45: Host Receipts | F45: =+L40 -> 1280 | K45: USD buy exchange rate: | L45: 1.3548 | M45: =IF(ISNUMBER(L45),IF(B1<>"Inbound","Error - Journey type not Inbound in B1",""),"") -> Error - Journey type not Inbound in B1
E46: Miscellaneous Receipts | F46: =+O40 -> 0 | M46: Ambassador's fee in USD @ the above exchange rate: | N46: =IF(ISNUMBER(L48),IF(ISNUMBER(N49),N49*L48,""),"") -> 4005
E47: Total Source of Funds | F47: =SUM(F44:F46) -> 6685.86
K48: Number of Ambassadors: | L48: =IF(L45 > 0,I2,"") -> 15
E49: Total Expenses | F49: =+F40 -> 6685.86 | M49: USD Cost/Ambassador (rounded to the next dollar): | N49: =IF(ISNUMBER(L45),IF(ISNUMBER(N50),ROUNDUP(N50/L45,0),""),"") -> 267
M50: CAD Cost/Ambassador: | N50: =IF(ISNUMBER(L48),ROUNDUP(I40/L48,2),"") -> 360.4
E51: Net Surplus / (Deficit) | F51: =+F47-F49 -> 0
I53: Outbound
K54: USD sell exchange rate: | M54: =IF(ISNUMBER(L54),IF(B1<>"Outbound","Error - Journey type not Outbound in B1",""),"") -> 
K55: Individual FFI Fee amount (USD):
M56: Individual FFI Fee (CAD) @ the above exchange rate: | N56: =IF(ISNUMBER(L55),IF(ISNUMBER(L54),ROUNDUP(L55*L54,0),""),"") -> 
K58: 1st Journey - Requested Currency: | L58: Click to Select Currency
K59: sell exchange rate: | M59: =IF(ISNUMBER(L59),IF(B1<>"Outbound","Error - Journey type not Outbound in B1",""),"") -> 
K60: ="Individual Hosting Fee amount " & RIGHT(L58,5) & ":" -> Individual Hosting Fee amount rency:
M61: Hosting Fee (CAD) @ the above exchange rate: | N61: =IF(ISNUMBER(L60),IF(ISNUMBER(L59),ROUNDUP(L60*L59,0),""),"") -> 
K63: 2nd Journey - Requested Currency: | L63: Click to Select Currency
K64: sell exchange rate: | M64: =IF(ISNUMBER(L64),IF(B1<>"Outbound","Error - Journey type not Outbound in B1",""),"") -> 
K65: ="Individual Hosting Fee amount " & RIGHT(L63,5) & ":" -> Individual Hosting Fee amount rency:
M66: Hosting Fee (CAD) @ the above exchange rate: | N66: =IF(ISNUMBER(L65),IF(ISNUMBER(L64),ROUNDUP(L65*L64,0),""),"") -> 

Sheet Journal
A1: JOURNAL | C1: =IF(ROUND(F119-F77,2)=0,"Item names match Budget","ERROR, Item name does not match Budget") -> Item names match Budget | I1: Bank Reconciliation
A2: Date | B2: chq # Deposit # | C2: Item (exactly as typed in Budget otherwise ERROR) | D2: Deposit | E2: Withdrawal | F2: Balance | G2: Receipt # | H2: Description | I2: If item is in bank Statement | J2: Bank Balance
A3: 2019-12-01 | C3: Opening Balance | F3: 0 | I3: Enter "y" | J3: =F3 -> 0
A4: 2019-12-01 | B4: Dep 01 | C4: Host Receipts | D4: 1280 | F4: =ROUND(+F3+D4-E4,2) -> 1280 | H4: Payment from the 15 hosts participating in the events | I4: y | J4: =IF(UPPER(I4)="Y",ROUND(J3+D4-E4,2),J3) -> 1280
A5: 2019-12-07 | B5: WT 01 | C5: Ambassador Receipts | D5: 5285.8 | F5: =ROUND(+F4+D5-E5,2) -> 6565.8 | G5: 1 | H5: Ambassador's hosting fee $4005 USD @ 1.3198 | I5: y | J5: =IF(UPPER(I5)="Y",ROUND(J4+D5-E5,2),J4) -> 6565.8
A6: 2019-12-07 | B6: WT 01 | C6: Wire Transfer Fee | E6: 14 | F6: 6551.8 | G6: 1 | I6: y | J6: 6551.8
A7: 2019-12-15 | B7: CK 01 | C7: Escapade Eskimo | E7: 200 | F7: 6351.8 | G7: 2 | H7: Deposit Payment to Eskim Inc. | I7: y | J7: 6351.8
A8: 2019-12-31 | B8: SC | C8: Bank Fees | E8: 2.5 | F8: 6349.3 | I8: y | J8: 6349.3
A9: 2020-01-17 | B9: CK 02 | C9: Ambassador Booklets | E9: 49.18 | F9: 6300.12 | G9: 3 | H9: Translation Cost $8.50 and printing cost $40.68 paid to CL | I9: y | J9: 6300.12
A10: 2020-01-17 | B10: CK 03 | C10: Farewell | E10: 250 | F10: 6050.12 | G10: 4 | H10: Deposit Payment to John's Golf Club | I10: y | J10: 6050.12
A11: 2019-01-31 | B11: SC | C11: Bank Fees | E11: 2.5 | F11: 6047.62 | I11: y | J11: 6047.62
A12: 2020-02-04 | B12: WD 01 | C12: Winterlude | E12: 150 | F12: 5897.62 | H12: Lunch Money $10 per Ambassador | I12: y | J12: 5897.62
A13: 2020-02-04 | B13: WD 01 | C13: Museum of History | E13: 150 | F13: 5747.62 | H13: Lunch Money $10 per Ambassador | I13: y | J13: 5747.62
A14: 2020-02-04 | B14: WD 01 | C14: Curling-Ice Fishing | E14: 225 | F14: 5522.62 | H14: Lunch Money $15 per Ambassador | I14: y | J14: 5522.62
A15: 2020-02-04 | B15: WD 01 | C15: Parliament | E15: 150 | F15: 5372.62 | H15: Lunch Money $10 per Ambassador | I15: y | J15: 5372.62
A16: 2020-02-04 | B16: WD 01 | C16: Museum of History | E16: 75 | F16: 5297.62 | H16: 15 donation @ $5 participants to Nunavut Sivuniksavut | I16: y | J16: 5297.62
A17: 2020-02-04 | B17: WD 01 | C17: Escapade Eskimo | E17: 30 | F17: 5267.62 | H17: Bus Driver Tips 15 @ $2 | I17: y | J17: 5267.62
A18: 2020-02-04 | B18: WD 01 | C18: Omega Park | E18: 30 | F18: 5237.62 | H18: Bus Driver Tips 15 @ $2 | I18: y | J18: 5237.62
A19: 2020-02-06 | B19: CK 04 | C19: Welcome | E19: 348.89 | F19: 4888.73 | G19: 5 | H19: Lunch $308 + Tips $40.89 to Jim's Catering | I19: y | J19: 4888.73
A20: 2020-02-06 | B20: CK 05 | C20: Welcome | E20: 100 | F20: 4788.73 | G20: 6 | H20: Hall rental to God's Church | I20: y | J20: 4788.73
A21: 2020-02-06 | B21: CK 06 | C21: Welcome | E21: 50 | F21: 4738.73 | G21: 6 | H21: God's Church Caretaker services to George Teboul | I21: y | J21: 4738.73
A22: 2020-02-06 | B22: CK 07 | C22: Club Gift | E22: 18.32 | F22: 4720.41 | G22: 7 | H22: To HC | I22: y | J22: 4720.41
A23: 2020-02-07 | B23: CK 08 | C23: Escapade Eskimo | E23: 425 | F23: 4295.41 | G23: 8 | H23: Bus cost to Lemieux Transport Inc. | I23: y | J23: 4295.41
A24: 2020-02-07 | B24: CK 09 | C24: Escapade Eskimo | E24: 704 | F24: 3591.41 | G24: 9 | H24: Day Activities 19 @ $45.20 - deposit, to Eskim Inc | I24: y | J24: 3591.41
A25: 2020-02-09 | B25: CK 10 | C25: Curling-Ice Fishing | E25: 254.25 | F25: 3337.16 | G25: 10 | H25: Ice Sheet rental to Cumberland Curling Ass. | I25: y | J25: 3337.16
A26: 2020-02-09 | B26: CK 11 | C26: Curling-Ice Fishing | E26: 72.72 | F26: 3264.44 | G26: 11 | H26: 3 Bottles of Caribou @ 21.45 + tax to NH9 | I26: y | J26: 3264.44
A27: 2020-02-09 | B27: CK 12 | C27: Museum of History | E27: 10 | F27: 3254.44 | G27: 12 | H27: To D2H3 for parking | I27: y | J27: 3254.44
A28: 2020-02-09 | B28: CK 13 | C28: Memory Stick | E28: 22.6 | F28: 3231.84 | G28: 13 | H28: To CL | I28: y | J28: 3231.84
A29: 2020-02-09 | B29: CK 13 | C29: Gift Bags | E29: 138.75 | F29: 3093.09 | G29: 14 | H29: To CL | I29: y | J29: 3093.09
A30: 2020-02-09 | B30: CK 14 | C30: Museum of History | E30: 382.4 | F30: 2710.69 | G30: 15 | H30: Museum entrance 20 @ $16 & guide 20 @ $3.12 to HC | I30: y | J30: 2710.69
A31: 2020-02-09 | B31: CK 14 | C31: Museum of History | E31: 10 | F31: 2700.69 | G31: 16 | H31: To HC for parking | I31: y | J31: 2700.69
A32: 2020-02-11 | B32: CK 15 | C32: Omega Park | E32: 419.92 | F32: 2280.77 | G32: 17 | H32: Entrance Fee 19 @ $15.70 + tax & Guide $72 + tax to Parc Omega Inc. | I32: y | J32: 2280.77
A33: 2020-02-11 | B33: CK 16 | C33: Omega Park | E33: 700 | F33: 1580.77 | G33: 18 | H33: Bus cost to Lemieux Transport Inc. | I33: y | J33: 1580.77
A34: 2020-02-11 | B34: CK 17 | C34: Omega Park | E34: 380 | F34: 1200.77 | G34: 19 | H34: Lunch 19 @ $20.00 to NH5 | I34: y | J34: 1200.77
A35: 2020-02-12 | B35: CK 18 | C35: Escapade Eskimo | E35: 192.1 | F35: 1008.67 | G35: 20 | H35: Lunch 20 @ $8.50 + tax to HL | I35: y | J35: 1008.67
A36: 2020-02-12 | B36: CK 18 | C36: Museum of History | E36: 10 | F36: 998.67 | G36: 21 | H36: To HL for parking | I36: y | J36: 998.67
A37: 2020-02-12 | B37: CK 19 | C37: Museum of History | E37: 10 | F37: 988.67 | G37: 22 | H37: To NH6 for parking | I37: y | J37: 988.67
A38: 2020-02-12 | B38: CK 20 | C38: Museum of History | E38: 10 | F38: 978.67 | G38: 23 | H38: To NH10 for parking | I38: y | J38: 978.67
A39: 2020-02-12 | B39: CK 21 | C39: Museum of History | E39: 10 | F39: 968.67 | G39: 24 | H39: To D2H7 for parking | I39: y | J39: 968.67
A40: 2020-02-12 | B40: CK 22 | C40: Museum of History | E40: 10 | F40: 958.67 | G40: 25 | H40: To DH8 for parking | I40: y | J40: 958.67
A41: 2020-02-12 | B41: CK 23 | C41: Farewell | E41: 950 | F41: 8.67 | G41: 26 | H41: Farewell Dinner 30 @ $ 40 - deposit, to John's Golf Course | I41: y | J41: 8.67
A42: 2020-02-29 | B42: CK 24 | C42: Committee Expenses | E42: 2 | F42: 6.67 | G42: 27 | H42: To Self, for envelope & stamp 2 @ $0.10 + $0.90 for both deposit payments | I42: y | J42: 6.67
A43: 2020-02-29 | B43: CK 25 | C43: Surplus to FFO | E43: 1.67 | F43: 5 | I43: y | J43: 5
A44: 2020-02-29 | B44: SC | C44: Bank Fees | E44: 2.5 | F44: 2.5 | I44: y | J44: 2.5
A45: 2020-03-15 | B45: SC | C45: Bank Fees | E45: 2.5 | F45: 0 | I45: y | J45: 0
F46: 0 | J46: 0
F47: 0 | J47: 0
F48: 0 | J48: 0
F49: 0 | J49: 0
F50: 0 | J50: 0
F51: 0 | J51: 0
F52: 0 | J52: 0
F53: 0 | J53: 0
F54: 0 | J54: 0
F55: 0 | J55: 0
F56: 0 | J56: 0
F57: 0 | J57: 0
F58: 0 | J58: 0
F59: 0 | J59: 0
F60: 0 | J60: 0
F61: 0 | J61: 0
F62: 0 | J62: 0
F63: 0 | J63: 0
F64: 0 | J64: 0
F65: 0 | J65: 0
F66: 0 | J66: 0
F67: 0 | J67: 0
F68: 0 | J68: 0
F69: =ROUND(+F68+D69-E69,2) -> 0 | J69: =IF(UPPER(I69)="Y",ROUND(J68+D69-E69,2),J68) -> 0
F70: 0 | J70: 0
F71: 0 | J71: 0
F72: 0 | J72: 0
F73: 0 | J73: 0
F74: 0 | J74: 0
F75: 0 | J75: 0
C76: Insert required number of lines above this line*
A77: 2020-03-15 | D77: Closing Balance | F77: =+F75 -> 0
D78: less opening Balance | F78: =F3 -> 0 | H78: * if you insert one or more lines, do not forget to copy the formula
D79: Net Surplus/Deficit | F79: =+F77-F78 -> 0 | H79: in column "F" above the added lines and paste it into column"F"
H80: on the added line(s) and also in the line below the added line(s).
H81: You must unprotect the worksheet to amend colimn F
C82: Item (from Budget) | D82: =+D2 -> Deposit | E82: =+E2 -> Withdrawal | F82: =+F2 -> Balance
C83: =+C3 -> Opening Balance | F83: =F3 -> 0
C84: ='SUMMARY-SOURCE & USE OF FUNDS'!C4 -> Ambassador Receipts | D84: =SUMIF($C$3:$C$76,C84,$D$3:$D$76) -> 5285.8 | E84: =SUMIF($C$3:$C$76,C84,$E$3:$E$76) -> 0 | F84: =D84-E84 -> 5285.8
C85: ='SUMMARY-SOURCE & USE OF FUNDS'!C5 -> Host Receipts | D85: 1280 | E85: 0 | F85: 1280
C86: ='SUMMARY-SOURCE & USE OF FUNDS'!C6 -> Miscellaneous Receipts | D86: 0 | E86: 0 | F86: 0
C87: ='SUMMARY-SOURCE & USE OF FUNDS'!C11 -> Welcome | D87: 0 | E87: 498.89 | F87: -498.89
C88: ='SUMMARY-SOURCE & USE OF FUNDS'!C12 -> Escapade Eskimo | D88: 0 | E88: 1551.1 | F88: -1551.1
C89: ='SUMMARY-SOURCE & USE OF FUNDS'!C13 -> Museum of History | D89: 0 | E89: 677.4 | F89: -677.4
C90: ='SUMMARY-SOURCE & USE OF FUNDS'!C14 -> Curling-Ice fishing | D90: 0 | E90: 551.97 | F90: -551.97
C91: ='SUMMARY-SOURCE & USE OF FUNDS'!C15 -> Winterlude | D91: 0 | E91: 150 | F91: -150
C92: ='SUMMARY-SOURCE & USE OF FUNDS'!C16 -> Omega Park | D92: 0 | E92: 1529.92 | F92: -1529.92
C93: ='SUMMARY-SOURCE & USE OF FUNDS'!C17 -> Parliament | D93: 0 | E93: 150 | F93: -150
C94: ='SUMMARY-SOURCE & USE OF FUNDS'!C18 -> Event 8 | D94: 0 | E94: 0 | F94: 0
C95: ='SUMMARY-SOURCE & USE OF FUNDS'!C19 -> Farewell | D95: 0 | E95: 1200 | F95: -1200
C96: ='SUMMARY-SOURCE & USE OF FUNDS'!C20 -> Gift Bags | D96: 0 | E96: 138.75 | F96: -138.75
C97: ='SUMMARY-SOURCE & USE OF FUNDS'!C21 -> Photographs | D97: 0 | E97: 0 | F97: 0
C98: ='SUMMARY-SOURCE & USE OF FUNDS'!C22 -> Parking | D98: 0 | E98: 0 | F98: 0
C99: ='SUMMARY-SOURCE & USE OF FUNDS'!C23 -> Host Refund | D99: 0 | E99: 0 | F99: 0
C100: ='SUMMARY-SOURCE & USE OF FUNDS'!C24 -> FFI Fees | D100: 0 | E100: 0 | F100: 0
C101: ='SUMMARY-SOURCE & USE OF FUNDS'!C25 -> Hosting Fees | D101: 0 | E101: 0 | F101: 0
C102: ='SUMMARY-SOURCE & USE OF FUNDS'!C26 -> Post Journey Party | D102: 0 | E102: 0 | F102: 0
C103: ='SUMMARY-SOURCE & USE OF FUNDS'!C27 -> Wire Transfer Fee | D103: 0 | E103: 14 | F103: -14
C104: ='SUMMARY-SOURCE & USE OF FUNDS'!C28 -> Ambassador Booklets | D104: 0 | E104: 49.18 | F104: -49.18
C105: ='SUMMARY-SOURCE & USE OF FUNDS'!C29 -> Host Booklets | D105: 0 | E105: 0 | F105: 0
C106: ='SUMMARY-SOURCE & USE OF FUNDS'!C30 -> Club Gift | D106: 0 | E106: 18.32 | F106: -18.32
C107: ='SUMMARY-SOURCE & USE OF FUNDS'!C31 -> Bank Fees | D107: 0 | E107: 10 | F107: -10
C108: ='SUMMARY-SOURCE & USE OF FUNDS'!C32 -> Committee Expenses | D108: 0 | E108: 2 | F108: -2
C109: ='SUMMARY-SOURCE & USE OF FUNDS'!C33 -> Contingency | D109: 0 | E109: 0 | F109: 0
C110: ='SUMMARY-SOURCE & USE OF FUNDS'!C34 -> Ambassador Refund | D110: 0 | E110: 0 | F110: 0
C111: ='SUMMARY-SOURCE & USE OF FUNDS'!C35 -> Surplus to FFO | D111: 0 | E111: 1.67 | F111: -1.67
C112: ='SUMMARY-SOURCE & USE OF FUNDS'!C36 -> Memory Stick | D112: 0 | E112: 22.6 | F112: -22.6
C113: ='SUMMARY-SOURCE & USE OF FUNDS'!C37 -> Exp blank 2 | D113: 0 | E113: 0 | F113: 0
C114: ='SUMMARY-SOURCE & USE OF FUNDS'!C38 -> Exp blank 3 | D114: 0 | E114: 0 | F114: 0
C115: ='SUMMARY-SOURCE & USE OF FUNDS'!C39 -> Exp blank 4 | D115: 0 | E115: 0 | F115: 0
C116: ='SUMMARY-SOURCE & USE OF FUNDS'!C40 -> Exp blank 5 | D116: 0 | E116: 0 | F116: 0
C117: ='SUMMARY-SOURCE & USE OF FUNDS'!C41 -> Exp blank 6 | D117: 0 | E117: 0 | F117: 0
C118: ='SUMMARY-SOURCE & USE OF FUNDS'!C42 -> Exp blank 7 | D118: 0 | E118: 0 | F118: 0
F119: =ROUND(SUM(F83:F118),2) -> 0

Sheet Outbound Details
A1: Ambassador # | B1: Ambassador Name (Assured Seat) | C1: Payments | J1: Expenses | S1: Balance | T1: Exchange rate | U1: Comments
C2: Journey Registration Fee | D2: Assured Space Deposit | E2: FFI Fee $Cdn | F2: Host 1 Program Fee $Cdn | G2: Host 2 Program Fee $Cdn | I2: FFI Fee $Cdn | J2: Host 1 Program Fee $Cdn | K2: Host 2 Program Fee $Cdn | P2: Shared cost Items | Q2: Transfer to FFO | R2: Refund
A3: 1 | C3: 0 | D3: 0 | E3: 0 | F3: 0 | G3: 0 | H3: 0 | I3: 0 | J3: 0 | K3: 0 | L3: 0 | M3: 0 | N3: 0 | O3: 0 | P3: 0 | Q3: 0 | R3: 0 | S3: =ROUND(SUM(C3:H3),2)-ROUND(SUM(I3:R3),2) -> 0
A4: 2 | C4: 0 | D4: 0 | E4: 0 | F4: 0 | G4: 0 | H4: 0 | I4: 0 | J4: 0 | K4: 0 | L4: 0 | M4: 0 | N4: 0 | O4: 0 | P4: 0 | Q4: 0 | R4: 0 | S4: =ROUND(SUM(C4:H4),2)-ROUND(SUM(I4:R4),2) -> 0
A5: 3 | C5: 0 | D5: 0 | E5: 0 | F5: 0 | G5: 0 | H5: 0 | I5: 0 | J5: 0 | K5: 0 | L5: 0 | M5: 0 | N5: 0 | O5: 0 | P5: 0 | Q5: 0 | R5: 0 | S5: 0
A6: 4 | C6: 0 | D6: 0 | E6: 0 | F6: 0 | G6: 0 | H6: 0 | I6: 0 | J6: 0 | K6: 0 | L6: 0 | M6: 0 | N6: 0 | O6: 0 | P6: 0 | Q6: 0 | R6: 0 | S6: 0
A7: 5 | C7: 0 | D7: 0 | E7: 0 | F7: 0 | G7: 0 | H7: 0 | I7: 0 | J7: 0 | K7: 0 | L7: 0 | M7: 0 | N7: 0 | O7: 0 | P7: 0 | Q7: 0 | R7: 0 | S7: 0
A8: 6 | C8: 0 | D8: 0 | E8: 0 | F8: 0 | G8: 0 | H8: 0 | I8: 0 | J8: 0 | K8: 0 | L8: 0 | M8: 0 | N8: 0 | O8: 0 | P8: 0 | Q8: 0 | R8: 0 | S8: 0
A9: 7 | C9: 0 | D9: 0 | E9: 0 | F9: 0 | G9: 0 | H9: 0 | I9: 0 | J9: 0 | K9: 0 | L9: 0 | M9: 0 | N9: 0 | O9: 0 | P9: 0 | Q9: 0 | R9: 0 | S9: 0
A10: 8 | C10: 0 | D10: 0 | E10: 0 | F10: 0 | G10: 0 | H10: 0 | I10: 0 | J10: 0 | K10: 0 | L10: 0 | M10: 0 | N10: 0 | O10: 0 | P10: 0 | Q10: 0 | R10: 0 | S10: 0
A11: 9 | C11: 0 | D11: 0 | E11: 0 | F11: 0 | G11: 0 | H11: 0 | I11: 0 | J11: 0 | K11: 0 | L11: 0 | M11: 0 | N11: 0 | O11: 0 | P11: 0 | Q11: 0 | R11: 0 | S11: 0
A12: 10 | C12: 0 | D12: 0 | E12: 0 | F12: 0 | G12: 0 | H12: 0 | I12: 0 | J12: 0 | K12: 0 | L12: 0 | M12: 0 | N12: 0 | O12: 0 | P12: 0 | Q12: 0 | R12: 0 | S12: 0
A13: 11 | C13: 0 | D13: 0 | E13: 0 | F13: 0 | G13: 0 | H13: 0 | I13: 0 | J13: 0 | K13: 0 | L13: 0 | M13: 0 | N13: 0 | O13: 0 | P13: 0 | Q13: 0 | R13: 0 | S13: 0
A14: 12 | C14: 0 | D14: 0 | E14: 0 | F14: 0 | G14: 0 | H14: 0 | I14: 0 | J14: 0 | K14: 0 | L14: 0 | M14: 0 | N14: 0 | O14: 0 | P14: 0 | Q14: 0 | R14: 0 | S14: 0
A15: 13 | C15: 0 | D15: 0 | E15: 0 | F15: 0 | G15: 0 | H15: 0 | I15: 0 | J15: 0 | K15: 0 | L15: 0 | M15: 0 | N15: 0 | O15: 0 | P15: 0 | Q15: 0 | R15: 0 | S15: 0
A16: 14 | C16: 0 | D16: 0 | E16: 0 | F16: 0 | G16: 0 | H16: 0 | I16: 0 | J16: 0 | K16: 0 | L16: 0 | M16: 0 | N16: 0 | O16: 0 | P16: 0 | Q16: 0 | R16: 0 | S16: 0
A17: 15 | C17: 0 | D17: 0 | E17: 0 | F17: 0 | G17: 0 | H17: 0 | I17: 0 | J17: 0 | K17: 0 | L17: 0 | M17: 0 | N17: 0 | O17: 0 | P17: 0 | Q17: 0 | R17: 0 | S17: 0
A18: 16 | C18: 0 | D18: 0 | E18: 0 | F18: 0 | G18: 0 | H18: 0 | I18: 0 | J18: 0 | K18: 0 | L18: 0 | M18: 0 | N18: 0 | O18: 0 | P18: 0 | Q18: 0 | R18: 0 | S18: 0
A19: 17 | C19: 0 | D19: 0 | E19: 0 | F19: 0 | G19: 0 | H19: 0 | I19: 0 | J19: 0 | K19: 0 | L19: 0 | M19: 0 | N19: 0 | O19: 0 | P19: 0 | Q19: 0 | R19: 0 | S19: 0
A20: 18 | C20: 0 | D20: 0 | E20: 0 | F20: 0 | G20: 0 | H20: 0 | I20: 0 | J20: 0 | K20: 0 | L20: 0 | M20: 0 | N20: 0 | O20: 0 | P20: 0 | Q20: 0 | R20: 0 | S20: 0
A21: 19 | C21: 0 | D21: 0 | E21: 0 | F21: 0 | G21: 0 | H21: 0 | I21: 0 | J21: 0 | K21: 0 | L21: 0 | M21: 0 | N21: 0 | O21: 0 | P21: 0 | Q21: 0 | R21: 0 | S21: 0
A22: 20 | C22: 0 | D22: 0 | E22: 0 | F22: 0 | G22: 0 | H22: 0 | I22: 0 | J22: 0 | K22: 0 | L22: 0 | M22: 0 | N22: 0 | O22: 0 | P22: 0 | Q22: 0 | R22: 0 | S22: 0
A23: 21 | C23: 0 | D23: 0 | E23: 0 | F23: 0 | G23: 0 | H23: 0 | I23: 0 | J23: 0 | K23: 0 | L23: 0 | M23: 0 | N23: 0 | O23: 0 | P23: 0 | Q23: 0 | R23: 0 | S23: 0
A24: 22 | C24: 0 | D24: 0 | E24: 0 | F24: 0 | G24: 0 | H24: 0 | I24: 0 | J24: 0 | K24: 0 | L24: 0 | M24: 0 | N24: 0 | O24: 0 | P24: 0 | Q24: 0 | R24: 0 | S24: 0
A25: 23 | C25: 0 | D25: 0 | E25: 0 | F25: 0 | G25: 0 | H25: 0 | I25: 0 | J25: 0 | K25: 0 | L25: 0 | M25: 0 | N25: 0 | O25: 0 | P25: 0 | Q25: 0 | R25: 0 | S25: 0
A26: 24 | C26: 0 | D26: 0 | E26: 0 | F26: 0 | G26: 0 | H26: 0 | I26: 0 | J26: 0 | K26: 0 | L26: 0 | M26: 0 | N26: 0 | O26: 0 | P26: 0 | Q26: 0 | R26: 0 | S26: 0
A27: 25 | C27: 0 | D27: 0 | E27: 0 | F27: 0 | G27: 0 | H27: 0 | I27: 0 | J27: 0 | K27: 0 | L27: 0 | M27: 0 | N27: 0 | O27: 0 | P27: 0 | Q27: 0 | R27: 0 | S27: 0
A28: 26 | C28: 0 | D28: 0 | E28: 0 | F28: 0 | G28: 0 | H28: 0 | I28: 0 | J28: 0 | K28: 0 | L28: 0 | M28: 0 | N28: 0 | O28: 0 | P28: 0 | Q28: 0 | R28: 0 | S28: 0
A29: 27 | C29: 0 | D29: 0 | E29: 0 | F29: 0 | G29: 0 | H29: 0 | I29: 0 | J29: 0 | K29: 0 | L29: 0 | M29: 0 | N29: 0 | O29: 0 | P29: 0 | Q29: 0 | R29: 0 | S29: 0
A30: 28 | C30: 0 | D30: 0 | E30: 0 | F30: 0 | G30: 0 | H30: 0 | I30: 0 | J30: 0 | K30: 0 | L30: 0 | M30: 0 | N30: 0 | O30: 0 | P30: 0 | Q30: 0 | R30: 0 | S30: 0
A31: 29 | C31: 0 | D31: 0 | E31: 0 | F31: 0 | G31: 0 | H31: 0 | I31: 0 | J31: 0 | K31: 0 | L31: 0 | M31: 0 | N31: 0 | O31: 0 | P31: 0 | Q31: 0 | R31: 0 | S31: 0
A32: 30 | C32: 0 | D32: 0 | E32: 0 | F32: 0 | G32: 0 | H32: 0 | I32: 0 | J32: 0 | K32: 0 | L32: 0 | M32: 0 | N32: 0 | O32: 0 | P32: 0 | Q32: 0 | R32: 0 | S32: =ROUND(SUM(C32:H32),2)-ROUND(SUM(I32:R32),2) -> 0
B33: Totals in $CAD | C33: =SUM(C3:C32) -> 0 | D33: =SUM(D3:D32) -> 0 | E33: 0 | F33: 0 | G33: 0 | H33: =SUM(H3:H32) -> 0 | I33: =SUM(I3:I32) -> 0 | J33: =SUM(J3:J32) -> 0 | K33: =SUM(K3:K32) -> 0 | L33: 0 | M33: 0 | N33: 0 | O33: 0 | P33: 0 | Q33: 0 | R33: =SUM(R3:R32) -> 0 | S33: =SUM(S3:S32) -> 0
R34: Crosscheck: | S34: =ROUND(SUM(C33:H33),2)-ROUND(SUM(I33:R33),2) -> 0 | T34: Crosscheck must be zero, otherwiseadjustment of $0.01 needed
B35: Total $CAD. Funds Due | C35: =SUM(I33:R33) -> 0 | T35: to the an expense amount of the required number of Ambassador.
B36: Total $CAD. Funds Paid | C36: =SUM(C33:H33) -> 0 | T36: If the crosscheck amount greater than 0, then subtract $0.01; or
B37: Balance due | C37: =ROUND(C36-C35,2) -> 0 | T37: if the crosscheck is less than 0, then add $0.01
B39: Waiting list | D39: Date | F39: Withdrawals | L39: Shared cost items
A40: =INDIRECT("A"&ROW()-1)+1 -> 1 | F40: Jane Doe replaced by Joe Schnuck
A41: =INDIRECT("A"&ROW()-1)+1 -> 2
A42: 3
A43: 4
A44: 5
A45: 6
A46: 7
A47: 8
A48: 9
A49: 10
A50: 11
A51: 12
A52: 13 | L52: Total | M52: Total | N52: =SUM(N40:N51) -> 0
A53: 14
A54: 15
A55: 16
A56: 17
A57: 18

Sheet Inbound Details
A1: Participant's Name | B1: Welcome | C1: Escapade Eskimo | D1: Museum of History | E1: Curling Ice Fishing | F1: Omega Park | G1: Event name | H1: Event name | I1: Event name | J1: Farewell | K1: Total paid | L1: Balance | M1: Remarks
A2: (See instructions in L71) | B2: 13.96 | C2: 54.81 | D2: 19.12 | E2: 2 | F2: 37.8038 | G2: Cost/Pers. | H2: Cost/Pers. | I2: Cost/Pers. | J2: 40
A3: HC | B3: 14 | C3: 0 | D3: 19 | E3: 2 | F3: 0 | G3: 0 | H3: 0 | I3: 0 | J3: 40 | K3: =SUM(B3:J3) -> 75 | L3: =ROUND(K3-SUMIF(B3:J3,">0",B$2:J$2),2) -> -0.08
A4: Self | B4: 14 | C4: 0 | D4: 0 | E4: 2 | F4: 0 | G4: 0 | H4: 0 | I4: 0 | J4: 40 | K4: =SUM(B4:J4) -> 56 | L4: 0.04
A5: NH3 | B5: 14 | C5: 0 | D5: 0 | E5: 2 | F5: 0 | G5: 0 | H5: 0 | I5: 0 | J5: 40 | K5: 56 | L5: 0.04
A6: HL | B6: 0 | C6: 55 | D6: 19 | E6: 0 | F6: 0 | G6: 0 | H6: 0 | I6: 0 | J6: 40 | K6: 114 | L6: 0.07
A7: NH5 | B7: 14 | C7: 0 | D7: 0 | E7: 2 | F7: 38 | G7: 0 | H7: 0 | I7: 0 | J7: 40 | K7: 94 | L7: 0.24
A8: NH6 | B8: 14 | C8: 0 | D8: 19 | E8: 0 | F8: 0 | G8: 0 | H8: 0 | I8: 0 | J8: 40 | K8: 73 | L8: -0.08
A9: NH7 | B9: 14 | C9: 0 | D9: 0 | E9: 2 | F9: 38 | G9: 0 | H9: 0 | I9: 0 | J9: 40 | K9: 94 | L9: 0.24
A10: NH8 | B10: 14 | C10: 0 | D10: 0 | E10: 2 | F10: 38 | G10: 0 | H10: 0 | I10: 0 | J10: 40 | K10: 94 | L10: 0.24
A11: NH9 | B11: 14 | C11: 0 | D11: 0 | E11: 2 | F11: 38 | G11: 0 | H11: 0 | I11: 0 | J11: 40 | K11: 94 | L11: 0.24
A12: NH10 | B12: 14 | C12: 0 | D12: 19 | E12: 0 | F12: 0 | G12: 0 | H12: 0 | I12: 0 | J12: 40 | K12: 73 | L12: -0.08
A13: CL | B13: 0 | C13: 55 | D13: 0 | E13: 2 | F13: 0 | G13: 0 | H13: 0 | I13: 0 | J13: 40 | K13: 97 | L13: 0.19
A14: DH1 | B14: 0 | C14: 55 | D14: 0 | E14: 0 | F14: 0 | G14: 0 | H14: 0 | I14: 0 | J14: 40 | K14: 95 | L14: 0.19
A15: D2H2 | B15: 0 | C15: 55 | D15: 0 | E15: 0 | F15: 0 | G15: 0 | H15: 0 | I15: 0 | J15: 40 | K15: 95 | L15: 0.19
A16: D2H3 | B16: 0 | C16: 0 | D16: 19 | E16: 2 | F16: 0 | G16: 0 | H16: 0 | I16: 0 | J16: 40 | K16: 61 | L16: -0.12
A17: DH4 | B17: 14 | C17: 55 | D17: 0 | E17: 0 | F17: 0 | G17: 0 | H17: 0 | I17: 0 | J17: 40 | K17: 109 | L17: 0.23
B18: 0 | C18: 0 | D18: 0 | E18: 0 | F18: 0 | G18: 0 | H18: 0 | I18: 0 | J18: 0 | K18: 0 | L18: 0
B19: 0 | C19: 0 | D19: 0 | E19: 0 | F19: 0 | G19: 0 | H19: 0 | I19: 0 | J19: 0 | K19: 0 | L19: 0
B20: 0 | C20: 0 | D20: 0 | E20: 0 | F20: 0 | G20: 0 | H20: 0 | I20: 0 | J20: 0 | K20: 0 | L20: 0
B21: 0 | C21: 0 | D21: 0 | E21: 0 | F21: 0 | G21: 0 | H21: 0 | I21: 0 | J21: 0 | K21: 0 | L21: 0
B22: 0 | C22: 0 | D22: 0 | E22: 0 | F22: 0 | G22: 0 | H22: 0 | I22: 0 | J22: 0 | K22: 0 | L22: 0
B23: 0 | C23: 0 | D23: 0 | E23: 0 | F23: 0 | G23: 0 | H23: 0 | I23: 0 | J23: 0 | K23: 0 | L23: 0
B24: 0 | C24: 0 | D24: 0 | E24: 0 | F24: 0 | G24: 0 | H24: 0 | I24: 0 | J24: 0 | K24: 0 | L24: 0
B25: 0 | C25: 0 | D25: 0 | E25: 0 | F25: 0 | G25: 0 | H25: 0 | I25: 0 | J25: 0 | K25: 0 | L25: 0
B26: 0 | C26: 0 | D26: 0 | E26: 0 | F26: 0 | G26: 0 | H26: 0 | I26: 0 | J26: 0 | K26: 0 | L26: 0
B27: 0 | C27: 0 | D27: 0 | E27: 0 | F27: 0 | G27: 0 | H27: 0 | I27: 0 | J27: 0 | K27: 0 | L27: 0
B28: 0 | C28: 0 | D28: 0 | E28: 0 | F28: 0 | G28: 0 | H28: 0 | I28: 0 | J28: 0 | K28: 0 | L28: 0
B29: 0 | C29: 0 | D29: 0 | E29: 0 | F29: 0 | G29: 0 | H29: 0 | I29: 0 | J29: 0 | K29: 0 | L29: 0
B30: 0 | C30: 0 | D30: 0 | E30: 0 | F30: 0 | G30: 0 | H30: 0 | I30: 0 | J30: 0 | K30: 0 | L30: 0
B31: 0 | C31: 0 | D31: 0 | E31: 0 | F31: 0 | G31: 0 | H31: 0 | I31: 0 | J31: 0 | K31: 0 | L31: 0
B32: 0 | C32: 0 | D32: 0 | E32: 0 | F32: 0 | G32: 0 | H32: 0 | I32: 0 | J32: 0 | K32: 0 | L32: 0
B33: 0 | C33: 0 | D33: 0 | E33: 0 | F33: 0 | G33: 0 | H33: 0 | I33: 0 | J33: 0 | K33: 0 | L33: 0
B34: 0 | C34: 0 | D34: 0 | E34: 0 | F34: 0 | G34: 0 | H34: 0 | I34: 0 | J34: 0 | K34: 0 | L34: 0
B35: 0 | C35: 0 | D35: 0 | E35: 0 | F35: 0 | G35: 0 | H35: 0 | I35: 0 | J35: 0 | K35: 0 | L35: =ROUND(K35-SUMIF(B35:J35,">0",B$2:J$2),2) -> 0
B36: 0 | C36: 0 | D36: 0 | E36: 0 | F36: 0 | G36: 0 | H36: 0 | I36: 0 | J36: 0 | K36: 0 | L36: 0
B37: 0 | C37: 0 | D37: 0 | E37: 0 | F37: 0 | G37: 0 | H37: 0 | I37: 0 | J37: 0 | K37: 0 | L37: 0
B38: 0 | C38: 0 | D38: 0 | E38: 0 | F38: 0 | G38: 0 | H38: 0 | I38: 0 | J38: 0 | K38: 0 | L38: 0
B39: 0 | C39: 0 | D39: 0 | E39: 0 | F39: 0 | G39: 0 | H39: 0 | I39: 0 | J39: 0 | K39: 0 | L39: 0
B40: 0 | C40: 0 | D40: 0 | E40: 0 | F40: 0 | G40: 0 | H40: 0 | I40: 0 | J40: 0 | K40: 0 | L40: 0
B41: 0 | C41: 0 | D41: 0 | E41: 0 | F41: 0 | G41: 0 | H41: 0 | I41: 0 | J41: 0 | K41: 0 | L41: 0
B42: 0 | C42: 0 | D42: 0 | E42: 0 | F42: 0 | G42: 0 | H42: 0 | I42: 0 | J42: 0 | K42: 0 | L42: 0
B43: 0 | C43: 0 | D43: 0 | E43: 0 | F43: 0 | G43: 0 | H43: 0 | I43: 0 | J43: 0 | K43: 0 | L43: 0
B44: 0 | C44: 0 | D44: 0 | E44: 0 | F44: 0 | G44: 0 | H44: 0 | I44: 0 | J44: 0 | K44: 0 | L44: 0
B45: 0 | C45: 0 | D45: 0 | E45: 0 | F45: 0 | G45: 0 | H45: 0 | I45: 0 | J45: 0 | K45: 0 | L45: 0
B46: 0 | C46: 0 | D46: 0 | E46: 0 | F46: 0 | G46: 0 | H46: 0 | I46: 0 | J46: 0 | K46: 0 | L46: 0
B47: 0 | C47: 0 | D47: 0 | E47: 0 | F47: 0 | G47: 0 | H47: 0 | I47: 0 | J47: 0 | K47: 0 | L47: 0
B48: 0 | C48: 0 | D48: 0 | E48: 0 | F48: 0 | G48: 0 | H48: 0 | I48: 0 | J48: 0 | K48: 0 | L48: 0
B49: 0 | C49: 0 | D49: 0 | E49: 0 | F49: 0 | G49: 0 | H49: 0 | I49: 0 | J49: 0 | K49: 0 | L49: 0
B50: 0 | C50: 0 | D50: 0 | E50: 0 | F50: 0 | G50: 0 | H50: 0 | I50: 0 | J50: 0 | K50: 0 | L50: 0
B51: 0 | C51: 0 | D51: 0 | E51: 0 | F51: 0 | G51: 0 | H51: 0 | I51: 0 | J51: 0 | K51: 0 | L51: 0
B52: 0 | C52: 0 | D52: 0 | E52: 0 | F52: 0 | G52: 0 | H52: 0 | I52: 0 | J52: 0 | K52: 0 | L52: 0
B53: 0 | C53: 0 | D53: 0 | E53: 0 | F53: 0 | G53: 0 | H53: 0 | I53: 0 | J53: 0 | K53: 0 | L53: 0
B54: 0 | C54: 0 | D54: 0 | E54: 0 | F54: 0 | G54: 0 | H54: 0 | I54: 0 | J54: 0 | K54: 0 | L54: 0
B55: 0 | C55: 0 | D55: 0 | E55: 0 | F55: 0 | G55: 0 | H55: 0 | I55: 0 | J55: 0 | K55: 0 | L55: 0
B56: 0 | C56: 0 | D56: 0 | E56: 0 | F56: 0 | G56: 0 | H56: 0 | I56: 0 | J56: 0 | K56: 0 | L56: 0
B57: 0 | C57: 0 | D57: 0 | E57: 0 | F57: 0 | G57: 0 | H57: 0 | I57: 0 | J57: 0 | K57: 0 | L57: 0
B58: 0 | C58: 0 | D58: 0 | E58: 0 | F58: 0 | G58: 0 | H58: 0 | I58: 0 | J58: 0 | K58: 0 | L58: 0
B59: 0 | C59: 0 | D59: 0 | E59: 0 | F59: 0 | G59: 0 | H59: 0 | I59: 0 | J59: 0 | K59: 0 | L59: 0
B60: 0 | C60: 0 | D60: 0 | E60: 0 | F60: 0 | G60: 0 | H60: 0 | I60: 0 | J60: 0 | K60: 0 | L60: 0
B61: 0 | C61: 0 | D61: 0 | E61: 0 | F61: 0 | G61: 0 | H61: 0 | I61: 0 | J61: 0 | K61: 0 | L61: 0
B62: 0 | C62: 0 | D62: 0 | E62: 0 | F62: 0 | G62: 0 | H62: 0 | I62: 0 | J62: 0 | K62: 0 | L62: 0
B63: 0 | C63: 0 | D63: 0 | E63: 0 | F63: 0 | G63: 0 | H63: 0 | I63: 0 | J63: 0 | K63: 0 | L63: 0
B64: 0 | C64: 0 | D64: 0 | E64: 0 | F64: 0 | G64: 0 | H64: 0 | I64: 0 | J64: 0 | K64: 0 | L64: 0
B65: 0 | C65: 0 | D65: 0 | E65: 0 | F65: 0 | G65: 0 | H65: 0 | I65: 0 | J65: 0 | K65: 0 | L65: 0
B66: 0 | C66: 0 | D66: 0 | E66: 0 | F66: 0 | G66: 0 | H66: 0 | I66: 0 | J66: 0 | K66: 0 | L66: 0
B67: 0 | C67: 0 | D67: 0 | E67: 0 | F67: 0 | G67: 0 | H67: 0 | I67: 0 | J67: 0 | K67: 0 | L67: =ROUND(K67-SUMIF(B67:J67,">0",B$2:J$2),2) -> 0
B68: 0 | C68: 0 | D68: 0 | E68: 0 | F68: 0 | G68: 0 | H68: 0 | I68: 0 | J68: 0 | K68: =SUM(B68:J68) -> 0 | L68: =ROUND(K68-SUMIF(B68:J68,">0",B$2:J$2),2) -> 0
B69: 0 | C69: 0 | D69: 0 | E69: 0 | F69: 0 | G69: 0 | H69: 0 | I69: 0 | J69: 0 | K69: =SUM(B69:J69) -> 0 | L69: =ROUND(K69-SUMIF(B69:J69,">0",B$2:J$2),2) -> 0
B70: 0 | C70: 0 | D70: 0 | E70: 0 | F70: 0 | G70: 0 | H70: 0 | I70: 0 | J70: 0 | K70: =SUM(B70:J70) -> 0 | L70: =ROUND(K70-SUMIF(B70:J70,">0",B$2:J$2),2) -> 0
A71: Event Total Payment | B71: =SUM(B3:B70) -> 140 | C71: =SUM(C3:C70) -> 275 | D71: 95 | E71: 18 | F71: 152 | G71: 0 | H71: 0 | I71: =SUM(I3:I70) -> 0 | J71: 600 | K71: =SUM(K3:K70) -> 1280 | L71: =SUM(L3:L70) -> 1.55
A72: Number of Participants | B72: =COUNTIF(B3:B70,">0") -> 10 | C72: =COUNTIF(C3:C70,">0") -> 5 | D72: 5 | E72: 9 | F72: 4 | G72: 0 | H72: 0 | I72: =COUNTIF(I3:I70,">0") -> 0 | J72: 15 | K72: =COUNTIF(K3:K70,">0") -> 15 | M72: Note - For columns B through I:
A73: Event Surplus/Deficit | B73: =IF(ISNUMBER(B2),B71-B72*B2,"") -> 0.4 | C73: 0.95 | D73: -0.6 | E73: 0 | F73: 0.7848 | J73: =IF(ISNUMBER(J2),J71-J72*J2,"") -> 0 | K73: =IF(ISNUMBER(K2),K72*K2-K71,"") ->  | M73: Fill row 1 with the name of each event with an associated host's cost
B74: =IF(B72>0,IF(B73="","Cell B2, event actual cost/pers. is missing",""),"") ->  | E74: =IF(E72>0,IF(E73="","Cell E2, event actual cost/pers. is missing",""),"") ->  | H74: =IF(H72>0,IF(H73="","Cell H2, event actual cost/pers. is missing",""),"") ->  | M74: Fill row 2 with the actual cost of the event when known
C75: =IF(C72>0,IF(C73="","Cell C2, event actual cost/pers. is missing",""),"") ->  | F75: =IF(F72>0,IF(F73="","Cell F2, event actual cost/pers. is missing",""),"") ->  | I75: =IF(I72>0,IF(I73="","Cell I2, event actual cost/pers. is missing",""),"") ->  | M75: In row 3 through 70:
D76: =IF(D72>0,IF(D73="","Cell D2, event actual cost/pers. is missing",""),"") ->  | G76: =IF(G72>0,IF(G73="","Cell G2, event actual cost/pers. is missing",""),"") ->  | J76: =IF(J72>0,IF(J73="","Cell J2, event actual cost/pers. is missing",""),"") ->  | M76: Fill column A with the name of each participating host/FFO Member
M77: For each event, fill columns B through I with the amount paid by each Host.

Sheet Inbound Budget Report
I1: FF Saturnalia/41248/15 Ambassadors
I2: Wednesday, 05 Feb to Wednesday, 12 Feb 2020
A4: FFO HC Name: | D4: Jane Doe | I4: Incoming AC Name: | L4: John Smith
A5: FFO Journey Treasurer Name: | D5: Your name | I5: Incoming Treasurer Name: | L5: Joe Blow
A7: Events # and Dates | D7: Events | J7: FFO Revenue
B8: Expense Items | E8: Attendance | F8: Unit cost | G8: Total | J8: Attendance | L8: Unit cost | M8: Total
A10: #1 Wednesday, 5 Feb 2020 | D10: Welcome
B11: Room and hall fees | G11: 100
B12: Site staff | G12: 50
B13: Lunch | E13: 25 | F13: 12.32 | G13: 308 | J13: 10 | L13: 12.32 | M13: 123.2
B14: Staff and gratuities | E14: 25 | F14: 1.64 | G14: 40.88 | J14: 10 | L14: 1.68 | M14: 16.8
G15: 498.88 | M15: 140
A16: #2 Thursday, 6 Feb 2020 | D16: Escapade Eskimo
B17: Lunch | E17: 20 | F17: 10 | G17: 200 | J17: 5 | L17: 10 | M17: 50
B18: Escapade Eskimo Activities | E18: 20 | F18: 45 | G18: 900 | J18: 5 | L18: 45 | M18: 225
B19: Transportation | G19: 425
B20: Bus Driver Gratuities | G20: 30
G21: 1555 | M21: 275
A22: #3 Friday, 7 Feb 2020 | D22: Museum of History
B23: Museum of History Admission | E23: 20 | F23: 16 | G23: 320 | J23: 5 | L23: 16 | M23: 80
B24: Lunch | G24: 150
B25: Guided Tour | E25: 20 | F25: 3 | G25: 60 | J25: 5 | L25: 3 | M25: 15
B26: Nunavut Sivuniksavut | G26: 75
B27: Parking | G27: 70
G28: 675 | M28: 95
A29: #4 Saturday, 8 Feb 2020 | D29: Curling-Ice fishing
B30: Curling Sheet | G30: 250
B31: Ice Fishing Hut | G31: 24
B32: Lunch | G32: 225
B33: Drinks | E33: 24 | F33: 2 | G33: 48 | J33: 9 | L33: 2 | M33: 18
B34: Plastic cups | G34: 3.98
G35: 550.98 | M35: 18
A38: Events # and Dates | D38: Events | J38: FFO Revenue
B39: Expense Items | E39: Attendance | F39: Unit cost | G39: Total | J39: Attendance | L39: Unit cost | M39: Total
A41: #5 Sunday, 9 Feb 2020 | D41: Winterlude
B42: Lunch | G42: 150
G43: 150 | M43: 0
A44: #6 Monday, 10 Feb 2020 | D44: Omega Park
B45: Omega Park Entrance Fee | E45: 19 | F45: 18 | G45: 342 | J45: 4 | L45: 18 | M45: 72
B46: Lunch | E46: 19 | F46: 20 | G46: 380 | J46: 4 | L46: 20 | M46: 80
B47: Guide | G47: 75
B48: Transportation | G48: 700
B49: Bus Driver Gratuities | G49: 30
G50: 1527 | M50: 152
A51: #7 Tuesday, 11 Feb 2020 | D51: Parliament
B52: Lunch-Snack | G52: 150
A53: #8 Tuesday, 11 Feb 2020 | D53: Farewell
B54: Food | E54: 30 | F54: 40 | G54: 1200 | J54: 15 | L54: 40 | M54: 600
G55: 1350 | M55: 600
A56: Administrative Costs
B57: Gift Bags | E57: 15 | F57: 8 | G57: 120
B58: Wire Transfer Fee | E58: 1 | F58: 14 | G58: 14
B59: Ambassador Booklets | E59: 15 | F59: 2.5 | G59: 37.5
B60: Club Gift | E60: 1 | F60: 15 | G60: 15
B61: Bank Fees | E61: 5 | F61: 2.5 | G61: 12.5
B62: Contingency | E62: 15 | F62: 10 | G62: 150
B63: Memory Stick | E63: 15 | F63: 2 | G63: 30
G64: 379 | M64: 0
A66: Total Journey Cost in CAD | G66: 6685.86 | I66: Total paid by Hosts in CAD | M66: 1280
A67: Total paid by 15 Ambassadors in CAD | G67: 5405.86
A68: Ambassador each pay in CAD (divide by 15) | G68: 360.4
A69: Ambassador each pay in USD (divide by 1.3548) | G69: 267 | I69: (rounded up to next dollar)
A70: Total paid by Ambassadors in USD (multiply by 15) | G70: 4005

Sheet Welcome
B1: 2020-02-05 | E1: In cell B1, enter the date in the format: day month year, such as: 25 Oct 2018.
B2: =IF(ISBLANK(B1),G19,IF(TYPE(B1)=1,G19&" - "&TEXT(B1,"ddd")&", "&TEXT(B1,"dd mmm yyyy"),"Above date is invalid")) -> Welcome - Wed, 05 Feb 2020 | H2: ="In cell B2, to change the event name ''"&G19&""", rename the tab" -> In cell B2, to change the event name ''Welcome", rename the tab
A4: Expenses | C4: Estimated $ | E4: Source of Funds | I4: Estimated $ | K4: Summary - Source and Use of Funds
B5: =+B24 -> Total Site | C5: =+C24 -> 150 | G5: =+F20 -> Total Admissions-Ambassadors | I5: =+I20 -> 358.88
B6: =+B33 -> Total Decorations | C6: =+C33 -> 0 | G6: =+F30 -> Total Admissions-Hosts | I6: =+I30 -> 140 | L6: =+E4 -> Source of Funds | N6: Estimated $
B7: =+B42 -> Total Publicity | C7: =+C42 -> 0 | G7: =+F40 -> Total Miscellaneous Source of Funds | I7: =+I40 -> 0 | M7: =+G5 -> Total Admissions-Ambassadors | N7: =+I5 -> 358.88
B8: =+B51 -> Total Refreshments | C8: =+C51 -> 348.88 | M8: =+G6 -> Total Admissions-Hosts | N8: =+I6 -> 140
B9: =+B60 -> Total Program | C9: =+C60 -> 0 | M9: =+G7 -> Total Miscellaneous Source of Funds | N9: =+I7 -> 0
B10: =+B69 -> Total Prizes | C10: =+C69 -> 0 | M10: =+G12 -> Total Source of Funds | N10: =+I12 -> 498.88
B11: =+B78 -> Total Miscellaneous | C11: =+C78 -> 0
B12: =+"Total "&A4 -> Total Expenses | C12: =SUM(C5:C11) -> 498.88 | G12: =+"Total "&E4 -> Total Source of Funds | I12: =SUM(I5:I11) -> 498.88
L13: =+A4 -> Expenses
M14: =+B5 -> Total Site | N14: =+C5 -> 150
M15: Total Decorations | N15: 0
M16: Total Publicity | N16: 0
A17: Site | C17: Estimated | E17: Admissions-Ambassadors | I17: Estimated | M17: Total Refreshments | N17: 348.88
B18: Room and hall fees | C18: 100 | F18: Estimated # | G18: what | H18: unit price | M18: Total Program | N18: 0
B19: Site staff | C19: 50 | F19: =IF(BUDGET!I2>0,BUDGET!I2,"") -> 15 | G19: =MID(CELL("filename",A1),IF(ISNUMBER(FIND("]",CELL("filename",A1))),FIND("]",CELL("filename",A1))+1,FIND("#$",CELL("filename",A1))+2),31) -> Welcome | H19: =IF(F19="",0,(C12-I30-I40)/F19) -> 23.92533333 | I19: =IF(F19<>"",+H19*F19,0) -> 358.88 | M19: Total Prizes | N19: 0
B20: Equipment | F20: =+"Total "&E17 -> Total Admissions-Ambassadors | I20: =+I19 -> 358.88 | M20: Total Miscellaneous | N20: 0
B21: Tables and chairs | M21: Total Expenses | N21: 498.88
B22: blank | E22: Admissions-Hosts
B23: blank | F23: Estimated # | G23: what | H23: unit price | L23: Net Source and Use of Funds | N23: =+N10-N21 -> 0
B24: =+"Total "&A17 -> Total Site | C24: =SUM(C17:C23) -> 150 | F24: 10 | G24: Lunch | H24: 12.32 | I24: =+H24*F24 -> 123.2
F25: 10 | G25: Staff and gratuities | H25: =ROUND((H24/1.13*0.15)+H24,0)-H24 -> 1.68 | I25: 16.8
A26: Decorations | I26: 0
B27: Flowers | I27: 0
B28: Candles | I28: 0
B29: Lighting | I29: 0
B30: Balloons | F30: =+"Total "&E22 -> Total Admissions-Hosts | I30: =SUM(I24:I29) -> 140
B31: Paper supplies
B32: blank | E32: Miscellaneous Source of Funds
B33: =+"Total "&A26 -> Total Decorations | C33: =SUM(C26:C32) -> 0 | F33: Estimated # | G33: what | H33: unit price
I34: =+H34*F34 -> 0
A35: Publicity | I35: 0
B36: Graphics work | I36: 0
B37: Photocopying/Printing | I37: 0
B38: Postage | I38: 0
B39: blank | I39: 0
B40: blank | F40: =+"Total "&E32 -> Total Miscellaneous Source of Funds | I40: =SUM(I34:I39) -> 0
B41: blank
B42: =+"Total "&A35 -> Total Publicity | C42: =SUM(C35:C41) -> 0
A44: Refreshments
B45: Lunch | C45: =(F19+F24)*12.32 -> 308
B46: Drinks
B47: Linens
B48: Staff and gratuities | C48: =ROUND(C45/1.13*0.15,2) -> 40.88
B49: blank
B50: blank
B51: =+"Total "&A44 -> Total Refreshments | C51: =SUM(C44:C50) -> 348.88
A53: Program
B54: Performers
B55: Speakers
B56: Travel
B57: Hotel
B58: blank
B59: blank
B60: =+"Total "&A53 -> Total Program | C60: =SUM(C53:C59) -> 0
A62: Prizes
B63: Ribbons/Plaques/Trophies
B64: Gifts
B65: blank
B66: blank
B67: blank
B68: blank
B69: =+"Total "&A62 -> Total Prizes | C69: =SUM(C62:C68) -> 0
A71: Miscellaneous
B72: Telephone
B73: Transportation
B74: Stationery supplies
B75: Fax services
B76: blank
B77: blank
B78: =+"Total "&A71 -> Total Miscellaneous | C78: =SUM(C71:C77) -> 0

Sheet Escapade Eskimo
B1: 2020-02-06 | E1: In cell B1, enter the date in the format: day month year, such as: 25 Oct 2018.
B2: =IF(ISBLANK(B1),G19,IF(TYPE(B1)=1,G19&" - "&TEXT(B1,"ddd")&", "&TEXT(B1,"dd mmm yyyy"),"Above date is invalid")) -> Escapade Eskimo - Thu, 06 Feb 2020 | H2: ="In cell B2, to change the event name ''"&G19&""", rename the tab" -> In cell B2, to change the event name ''Escapade Eskimo", rename the tab
A4: Expenses | C4: Estimated $ | E4: Source of Funds | I4: Estimated $ | K4: Summary - Source and Use of Funds
B5: =+B24 -> Total Site | C5: =+C24 -> 0 | G5: =+F20 -> Total Admissions-Ambassadors | I5: =+I20 -> 1280
B6: =+B33 -> Total Decorations | C6: =+C33 -> 0 | G6: =+F30 -> Total Admissions-Hosts | I6: =+I30 -> 275 | L6: =+E4 -> Source of Funds | N6: Estimated $
B7: =+B42 -> Total Publicity | C7: =+C42 -> 0 | G7: =+F40 -> Total Miscellaneous Source of Funds | I7: =+I40 -> 0 | M7: =+G5 -> Total Admissions-Ambassadors | N7: =+I5 -> 1280
B8: =+B51 -> Total Refreshments | C8: =+C51 -> 200 | M8: =+G6 -> Total Admissions-Hosts | N8: =+I6 -> 275
B9: =+B60 -> Total Program | C9: =+C60 -> 900 | M9: =+G7 -> Total Miscellaneous Source of Funds | N9: =+I7 -> 0
B10: =+B69 -> Total Prizes | C10: =+C69 -> 0 | M10: =+G12 -> Total Source of Funds | N10: =+I12 -> 1555
B11: =+B78 -> Total Miscellaneous | C11: =+C78 -> 455
B12: =+"Total "&A4 -> Total Expenses | C12: =SUM(C5:C11) -> 1555 | G12: =+"Total "&E4 -> Total Source of Funds | I12: =SUM(I5:I11) -> 1555
L13: =+A4 -> Expenses
M14: =+B5 -> Total Site | N14: 0
M15: Total Decorations | N15: 0
M16: Total Publicity | N16: 0
A17: Site | C17: Estimated | E17: Admissions-Ambassadors | I17: Estimated | M17: Total Refreshments | N17: 200
B18: Room and hall fees | F18: Estimated # | G18: what | H18: unit price | M18: Total Program | N18: 900
B19: Site staff | F19: =IF(BUDGET!I2>0,BUDGET!I2,"") -> 15 | G19: =MID(CELL("filename",A1),IF(ISNUMBER(FIND("]",CELL("filename",A1))),FIND("]",CELL("filename",A1))+1,FIND("#$",CELL("filename",A1))+2),31) -> Escapade Eskimo | H19: =IF(F19="",0,(C12-I30-I40)/F19) -> 85.33333333 | I19: =IF(F19<>"",+H19*F19,0) -> 1280 | M19: Total Prizes | N19: 0
B20: Equipment | F20: =+"Total "&E17 -> Total Admissions-Ambassadors | I20: =+I19 -> 1280 | M20: Total Miscellaneous | N20: 455
B21: Tables and chairs | M21: Total Expenses | N21: 1555
B22: blank | E22: Admissions-Hosts
B23: blank | F23: Estimated # | G23: what | H23: unit price | L23: Net Source and Use of Funds | N23: =+N10-N21 -> 0
B24: =+"Total "&A17 -> Total Site | C24: =SUM(C18:C23) -> 0 | F24: 5 | G24: Escapade Eskimo Activities | H24: 45 | I24: =+H24*F24 -> 225
F25: 5 | G25: Lunch | H25: 10 | I25: 50
A26: Decorations | I26: 0
B27: Flowers | I27: 0
B28: Candles | I28: 0
B29: Lighting | I29: 0
B30: Balloons | F30: =+"Total "&E22 -> Total Admissions-Hosts | I30: =SUM(I24:I29) -> 275
B31: Paper supplies
B32: blank | E32: Miscellaneous Source of Funds
B33: =+"Total "&A26 -> Total Decorations | C33: =SUM(C27:C32) -> 0 | F33: Estimated # | G33: what | H33: unit price
I34: =+H34*F34 -> 0
A35: Publicity | I35: 0
B36: Graphics work | I36: 0
B37: Photocopying/Printing | I37: 0
B38: Postage | I38: 0
B39: blank | I39: 0
B40: blank | F40: =+"Total "&E32 -> Total Miscellaneous Source of Funds | I40: =SUM(I34:I39) -> 0
B41: blank
B42: =+"Total "&A35 -> Total Publicity | C42: =SUM(C36:C41) -> 0
A44: Refreshments
B45: Lunch | C45: =(F19+F25)*10 -> 200
B46: Drinks
B47: Linens
B48: Staff and gratuities
B49: blank
B50: blank
B51: =+"Total "&A44 -> Total Refreshments | C51: =SUM(C45:C50) -> 200
A53: Program
B54: Performers
B55: Speakers
B56: Travel
B57: Hotel
B58: Escapade Eskimo Activities | C58: =(F19+F24)*45 -> 900
B59: blank
B60: =+"Total "&A53 -> Total Program | C60: =SUM(C54:C59) -> 900
A62: Prizes
B63: Ribbons/Plaques/Trophies
B64: Gifts
B65: blank
B66: blank
B67: blank
B68: blank
B69: =+"Total "&A62 -> Total Prizes | C69: =SUM(C63:C68) -> 0
A71: Miscellaneous
B72: Telephone
B73: Transportation | C73: 425
B74: Stationery supplies
B75: Fax services
B76: Bus Driver Gratuities | C76: =2*F19 -> 30
B77: blank
B78: =+"Total "&A71 -> Total Miscellaneous | C78: =SUM(C72:C77) -> 455

Sheet Museum of History
B1: 2020-02-07 | E1: In cell B1, enter the date in the format: day month year, such as: 25 Oct 2018.
B2: =IF(ISBLANK(B1),G19,IF(TYPE(B1)=1,G19&" - "&TEXT(B1,"ddd")&", "&TEXT(B1,"dd mmm yyyy"),"Above date is invalid")) -> Museum of History - Fri, 07 Feb 2020 | H2: ="In cell B2, to change the event name ''"&G19&""", rename the tab" -> In cell B2, to change the event name ''Museum of History", rename the tab
A4: Expenses | C4: Estimated $ | E4: Source of Funds | I4: Estimated $ | K4: Summary - Source and Use of Funds
B5: =+B24 -> Total Site | C5: =+C24 -> 320 | G5: =+F20 -> Total Admissions-Ambassadors | I5: =+I20 -> 580
B6: =+B33 -> Total Decorations | C6: =+C33 -> 0 | G6: =+F30 -> Total Admissions-Hosts | I6: =+I30 -> 95 | L6: =+E4 -> Source of Funds | N6: Estimated $
B7: =+B42 -> Total Publicity | C7: =+C42 -> 0 | G7: =+F40 -> Total Miscellaneous Source of Funds | I7: =+I40 -> 0 | M7: =+G5 -> Total Admissions-Ambassadors | N7: =+I5 -> 580
B8: =+B51 -> Total Refreshments | C8: =+C51 -> 150 | M8: =+G6 -> Total Admissions-Hosts | N8: =+I6 -> 95
B9: =+B60 -> Total Program | C9: =+C60 -> 135 | M9: =+G7 -> Total Miscellaneous Source of Funds | N9: =+I7 -> 0
B10: =+B69 -> Total Prizes | C10: =+C69 -> 0 | M10: =+G12 -> Total Source of Funds | N10: =+I12 -> 675
B11: =+B78 -> Total Miscellaneous | C11: =+C78 -> 70
B12: =+"Total "&A4 -> Total Expenses | C12: =SUM(C5:C11) -> 675 | G12: =+"Total "&E4 -> Total Source of Funds | I12: =SUM(I5:I11) -> 675
L13: =+A4 -> Expenses
M14: =+B5 -> Total Site | N14: 320
M15: Total Decorations | N15: 0
M16: Total Publicity | N16: 0
A17: Site | C17: Estimated | E17: Admissions-Ambassadors | I17: Estimated | M17: Total Refreshments | N17: 150
B18: Room and hall fees | F18: Estimated # | G18: what | H18: unit price | M18: Total Program | N18: 135
B19: Site staff | F19: =IF(BUDGET!I2>0,BUDGET!I2,"") -> 15 | G19: =MID(CELL("filename",A1),IF(ISNUMBER(FIND("]",CELL("filename",A1))),FIND("]",CELL("filename",A1))+1,FIND("#$",CELL("filename",A1))+2),31) -> Museum of History | H19: =IF(F19="",0,(C12-I30-I40)/F19) -> 38.66666667 | I19: =IF(F19<>"",+H19*F19,0) -> 580 | M19: Total Prizes | N19: 0
B20: Equipment | F20: =+"Total "&E17 -> Total Admissions-Ambassadors | I20: =+I19 -> 580 | M20: Total Miscellaneous | N20: 70
B21: Tables and chairs | M21: Total Expenses | N21: 675
B22: Museum of History Admission | C22: =(F19+F24)*16 -> 320 | E22: Admissions-Hosts
B23: blank | F23: Estimated # | G23: what | H23: unit price | L23: Net Source and Use of Funds | N23: =+N10-N21 -> 0
B24: =+"Total "&A17 -> Total Site | C24: =SUM(C17:C23) -> 320 | F24: 5 | G24: Museum of History Admission | H24: 16 | I24: =+H24*F24 -> 80
F25: 5 | G25: Guided Tour | H25: 3 | I25: 15
A26: Decorations | I26: 0
B27: Flowers | I27: 0
B28: Candles | I28: 0 | O28: 19
B29: Lighting | I29: 0 | N29: Unit cost | O29: Total
B30: Balloons | F30: =+"Total "&E22 -> Total Admissions-Hosts | I30: =SUM(I24:I29) -> 95 | L30: ambassadors
B31: Paper supplies | M31: entrance | N31: 12.65 | O31: =N31*O28 -> 240.35
B32: blank | E32: Miscellaneous Source of Funds | M32: tip | N32: 2 | O32: =N32*O28 -> 38
B33: =+"Total "&A26 -> Total Decorations | C33: =SUM(C26:C32) -> 0 | F33: Estimated # | G33: what | H33: unit price | M33: Total | O33: =O32+O31 -> 278.35
I34: =+H34*F34 -> 0 | M34: cost per person | O34: =O33/O28 -> 14.65
A35: Publicity | I35: 0
B36: Graphics work | I36: 0 | L36: hosts | O36: 7
B37: Photocopying/Printing | I37: 0 | M37: entrance | N37: =N31 -> 12.65 | O37: =N37*O36 -> 88.55
B38: Postage | I38: 0 | M38: Tip | N38: 2 | O38: 12
B39: blank | I39: 0 | M39: Total | O39: =O38+O37 -> 100.55
B40: blank | F40: =+"Total "&E32 -> Total Miscellaneous Source of Funds | I40: =SUM(I34:I39) -> 0 | M40: cost per person | O40: =O39/O36 -> 14.36428571
B41: blank
B42: =+"Total "&A35 -> Total Publicity | C42: =SUM(C35:C41) -> 0
A44: Refreshments
B45: Lunch | C45: =F19*10 -> 150
B46: Drinks
B47: Linens
B48: Staff and gratuities
B49: blank
B50: blank
B51: =+"Total "&A44 -> Total Refreshments | C51: =SUM(C44:C50) -> 150
A53: Program
B54: Performers
B55: Speakers
B56: Travel
B57: Hotel
B58: Guided Tour | C58: =(F19+F25)*3 -> 60
B59: Nunavut Sivuniksavut | C59: =F19*5 -> 75
B60: =+"Total "&A53 -> Total Program | C60: =SUM(C53:C59) -> 135
A62: Prizes
B63: Ribbons/Plaques/Trophies
B64: Gifts
B65: blank
B66: blank
B67: blank
B68: blank
B69: =+"Total "&A62 -> Total Prizes | C69: =SUM(C62:C68) -> 0
A71: Miscellaneous
B72: Telephone
B73: Transportation
B74: Stationery supplies
B75: Fax services
B76: Parking | C76: =7*10 -> 70
B77: blank
B78: =+"Total "&A71 -> Total Miscellaneous | C78: =SUM(C71:C77) -> 70

Sheet Curling-Ice fishing
B1: 2020-02-08 | E1: In cell B1, enter the date in the format: day month year, such as: 25 Oct 2018.
B2: =IF(ISBLANK(B1),G19,IF(TYPE(B1)=1,G19&" - "&TEXT(B1,"ddd")&", "&TEXT(B1,"dd mmm yyyy"),"Above date is invalid")) -> Curling-Ice fishing - Sat, 08 Feb 2020 | H2: ="In cell B2, to change the event name ''"&G19&""", rename the tab" -> In cell B2, to change the event name ''Curling-Ice fishing", rename the tab
A4: Expenses | C4: Estimated $ | E4: Source of Funds | I4: Estimated $ | K4: Summary - Source and Use of Funds
B5: =+B24 -> Total Site | C5: =+C24 -> 274 | G5: =+F20 -> Total Admissions-Ambassadors | I5: =+I20 -> 532.98
B6: =+B33 -> Total Decorations | C6: =+C33 -> 0 | G6: =+F30 -> Total Admissions-Hosts | I6: =+I30 -> 18 | L6: =+E4 -> Source of Funds | N6: Estimated $
B7: =+B42 -> Total Publicity | C7: =+C42 -> 0 | G7: =+F40 -> Total Miscellaneous Source of Funds | I7: =+I40 -> 0 | M7: =+G5 -> Total Admissions-Ambassadors | N7: =+I5 -> 532.98
B8: =+B51 -> Total Refreshments | C8: =+C51 -> 276.98 | M8: =+G6 -> Total Admissions-Hosts | N8: =+I6 -> 18
B9: =+B60 -> Total Program | C9: =+C60 -> 0 | M9: =+G7 -> Total Miscellaneous Source of Funds | N9: =+I7 -> 0
B10: =+B69 -> Total Prizes | C10: =+C69 -> 0 | M10: =+G12 -> Total Source of Funds | N10: =+I12 -> 550.98
B11: =+B78 -> Total Miscellaneous | C11: =+C78 -> 0
B12: =+"Total "&A4 -> Total Expenses | C12: =SUM(C5:C11) -> 550.98 | G12: =+"Total "&E4 -> Total Source of Funds | I12: =SUM(I5:I11) -> 550.98
L13: =+A4 -> Expenses
M14: =+B5 -> Total Site | N14: 274
M15: Total Decorations | N15: 0
M16: Total Publicity | N16: 0
A17: Site | C17: Estimated | E17: Admissions-Ambassadors | I17: Estimated | M17: Total Refreshments | N17: 276.98
B18: Room and hall fees | F18: Estimated # | G18: what | H18: unit price | M18: Total Program | N18: 0
B19: Site staff | F19: =IF(BUDGET!I2>0,BUDGET!I2,"") -> 15 | G19: =MID(CELL("filename",A1),IF(ISNUMBER(FIND("]",CELL("filename",A1))),FIND("]",CELL("filename",A1))+1,FIND("#$",CELL("filename",A1))+2),31) -> Curling-Ice fishing | H19: =IF(F19="",0,(C12-I30-I40)/F19) -> 35.532 | I19: =IF(F19<>"",+H19*F19,0) -> 532.98 | M19: Total Prizes | N19: 0
B20: Equipment | F20: =+"Total "&E17 -> Total Admissions-Ambassadors | I20: =+I19 -> 532.98 | M20: Total Miscellaneous | N20: 0
B21: Tables and chairs | M21: Total Expenses | N21: 550.98
B22: Curling Sheet | C22: 250 | E22: Admissions-Hosts
B23: Ice Fishing Hut | C23: 24 | F23: Estimated # | G23: what | H23: unit price | L23: Net Source and Use of Funds | N23: =+N10-N21 -> 0
B24: =+"Total "&A17 -> Total Site | C24: =SUM(C17:C23) -> 274 | F24: 9 | G24: Drinks | H24: 2 | I24: =+H24*F24 -> 18
I25: 0
A26: Decorations | I26: 0
B27: Flowers | I27: 0
B28: Candles | I28: 0
B29: Lighting | I29: 0
B30: Balloons | F30: =+"Total "&E22 -> Total Admissions-Hosts | I30: =SUM(I24:I29) -> 18
B31: Paper supplies
B32: blank | E32: Miscellaneous Source of Funds
B33: =+"Total "&A26 -> Total Decorations | C33: =SUM(C26:C32) -> 0 | F33: Estimated # | G33: what | H33: unit price
I34: =+H34*F34 -> 0
A35: Publicity | I35: 0
B36: Graphics work | I36: 0
B37: Photocopying/Printing | I37: 0
B38: Postage | I38: 0
B39: blank | I39: 0
B40: blank | F40: =+"Total "&E32 -> Total Miscellaneous Source of Funds | I40: =SUM(I34:I39) -> 0
B41: blank
B42: =+"Total "&A35 -> Total Publicity | C42: =SUM(C35:C41) -> 0
A44: Refreshments
B45: Lunch | C45: =F19*15 -> 225
B46: Drinks | C46: =2*24 -> 48
B47: Linens
B48: Staff and gratuities
B49: Plastic cups | C49: 3.98
B50: blank
B51: =+"Total "&A44 -> Total Refreshments | C51: =SUM(C44:C50) -> 276.98
A53: Program
B54: Performers
B55: Speakers
B56: Travel
B57: Hotel
B58: blank
B59: blank
B60: =+"Total "&A53 -> Total Program | C60: =SUM(C53:C59) -> 0
A62: Prizes
B63: Ribbons/Plaques/Trophies
B64: Gifts
B65: blank
B66: blank
B67: blank
B68: blank
B69: =+"Total "&A62 -> Total Prizes | C69: =SUM(C62:C68) -> 0
A71: Miscellaneous
B72: Telephone
B73: Transportation
B74: Stationery supplies
B75: Fax services
B76: blank
B77: blank
B78: =+"Total "&A71 -> Total Miscellaneous | C78: =SUM(C71:C77) -> 0

Sheet Winterlude
B1: 2020-02-09 | E1: In cell B1, enter the date in the format: day month year, such as: 25 Oct 2018.
B2: =IF(ISBLANK(B1),G19,IF(TYPE(B1)=1,G19&" - "&TEXT(B1,"ddd")&", "&TEXT(B1,"dd mmm yyyy"),"Above date is invalid")) -> Winterlude - Sun, 09 Feb 2020 | H2: ="In cell B2, to change the event name ''"&G19&""", rename the tab" -> In cell B2, to change the event name ''Winterlude", rename the tab
A4: Expenses | C4: Estimated $ | E4: Source of Funds | I4: Estimated $ | K4: Summary - Source and Use of Funds
B5: =+B24 -> Total Site | C5: =+C24 -> 0 | G5: =+F20 -> Total Admissions-Ambassadors | I5: =+I20 -> 150
B6: =+B33 -> Total Decorations | C6: =+C33 -> 0 | G6: =+F30 -> Total Admissions-Hosts | I6: =+I30 -> 0 | L6: =+E4 -> Source of Funds | N6: Estimated $
B7: =+B42 -> Total Publicity | C7: =+C42 -> 0 | G7: =+F40 -> Total Miscellaneous Source of Funds | I7: =+I40 -> 0 | M7: =+G5 -> Total Admissions-Ambassadors | N7: =+I5 -> 150
B8: =+B51 -> Total Refreshments | C8: =+C51 -> 150 | M8: =+G6 -> Total Admissions-Hosts | N8: =+I6 -> 0
B9: =+B60 -> Total Program | C9: =+C60 -> 0 | M9: =+G7 -> Total Miscellaneous Source of Funds | N9: =+I7 -> 0
B10: =+B69 -> Total Prizes | C10: =+C69 -> 0 | M10: =+G12 -> Total Source of Funds | N10: =+I12 -> 150
B11: =+B78 -> Total Miscellaneous | C11: =+C78 -> 0
B12: =+"Total "&A4 -> Total Expenses | C12: =SUM(C5:C11) -> 150 | G12: =+"Total "&E4 -> Total Source of Funds | I12: =SUM(I5:I11) -> 150
L13: =+A4 -> Expenses
M14: =+B5 -> Total Site | N14: 0
M15: Total Decorations | N15: 0
M16: Total Publicity | N16: 0
A17: Site | C17: Estimated | E17: Admissions-Ambassadors | I17: Estimated | M17: Total Refreshments | N17: 150
B18: Room and hall fees | F18: Estimated # | G18: what | H18: unit price | M18: Total Program | N18: 0
B19: Site staff | F19: =IF(BUDGET!I2>0,BUDGET!I2,"") -> 15 | G19: =MID(CELL("filename",A1),IF(ISNUMBER(FIND("]",CELL("filename",A1))),FIND("]",CELL("filename",A1))+1,FIND("#$",CELL("filename",A1))+2),31) -> Winterlude | H19: =IF(F19="",0,(C12-I30-I40)/F19) -> 10 | I19: =IF(F19<>"",+H19*F19,0) -> 150 | M19: Total Prizes | N19: 0
B20: Equipment | F20: =+"Total "&E17 -> Total Admissions-Ambassadors | I20: =+I19 -> 150 | M20: Total Miscellaneous | N20: 0
B21: Tables and chairs | M21: Total Expenses | N21: 150
B22: blank | E22: Admissions-Hosts
B23: blank | F23: Estimated # | G23: what | H23: unit price | L23: Net Source and Use of Funds | N23: =+N10-N21 -> 0
B24: =+"Total "&A17 -> Total Site | C24: =SUM(C17:C23) -> 0 | I24: =+H24*F24 -> 0
I25: 0
A26: Decorations | I26: 0
B27: Flowers | I27: 0
B28: Candles | I28: 0
B29: Lighting | I29: 0
B30: Balloons | F30: =+"Total "&E22 -> Total Admissions-Hosts | I30: =SUM(I24:I29) -> 0
B31: Paper supplies
B32: blank | E32: Miscellaneous Source of Funds
B33: =+"Total "&A26 -> Total Decorations | C33: =SUM(C26:C32) -> 0 | F33: Estimated # | G33: what | H33: unit price
I34: =+H34*F34 -> 0
A35: Publicity | I35: 0
B36: Graphics work | I36: 0
B37: Photocopying/Printing | I37: 0
B38: Postage | I38: 0
B39: blank | I39: 0
B40: blank | F40: =+"Total "&E32 -> Total Miscellaneous Source of Funds | I40: =SUM(I34:I39) -> 0
B41: blank
B42: =+"Total "&A35 -> Total Publicity | C42: =SUM(C35:C41) -> 0
A44: Refreshments
B45: Lunch | C45: =F19*10 -> 150
B46: Drinks
B47: Linens
B48: Staff and gratuities
B49: blank
B50: blank
B51: =+"Total "&A44 -> Total Refreshments | C51: =SUM(C44:C50) -> 150
A53: Program
B54: Performers
B55: Speakers
B56: Travel
B57: Hotel
B58: blank
B59: blank
B60: =+"Total "&A53 -> Total Program | C60: =SUM(C53:C59) -> 0
A62: Prizes
B63: Ribbons/Plaques/Trophies
B64: Gifts
B65: blank
B66: blank
B67: blank
B68: blank
B69: =+"Total "&A62 -> Total Prizes | C69: =SUM(C62:C68) -> 0
A71: Miscellaneous
B72: Telephone
B73: Transportation
B74: Stationery supplies
B75: Fax services
B76: blank
B77: blank
B78: =+"Total "&A71 -> Total Miscellaneous | C78: =SUM(C71:C77) -> 0

Sheet Omega Park
B1: 2020-02-10 | E1: In cell B1, enter the date in the format: day month year, such as: 25 Oct 2018.
B2: =IF(ISBLANK(B1),G19,IF(TYPE(B1)=1,G19&" - "&TEXT(B1,"ddd")&", "&TEXT(B1,"dd mmm yyyy"),"Above date is invalid")) -> Omega Park - Mon, 10 Feb 2020 | H2: ="In cell B2, to change the event name ''"&G19&""", rename the tab" -> In cell B2, to change the event name ''Omega Park", rename the tab
A4: Expenses | C4: Estimated $ | E4: Source of Funds | I4: Estimated $ | K4: Summary - Source and Use of Funds
B5: =+B24 -> Total Site | C5: =+C24 -> 342 | G5: =+F20 -> Total Admissions-Ambassadors | I5: =+I20 -> 1375
B6: =+B33 -> Total Decorations | C6: =+C33 -> 0 | G6: =+F30 -> Total Admissions-Hosts | I6: =+I30 -> 152 | L6: =+E4 -> Source of Funds | N6: Estimated $
B7: =+B42 -> Total Publicity | C7: =+C42 -> 0 | G7: =+F40 -> Total Miscellaneous Source of Funds | I7: =+I40 -> 0 | M7: =+G5 -> Total Admissions-Ambassadors | N7: =+I5 -> 1375
B8: =+B51 -> Total Refreshments | C8: =+C51 -> 380 | M8: =+G6 -> Total Admissions-Hosts | N8: =+I6 -> 152
B9: =+B60 -> Total Program | C9: =+C60 -> 75 | M9: =+G7 -> Total Miscellaneous Source of Funds | N9: =+I7 -> 0
B10: =+B69 -> Total Prizes | C10: =+C69 -> 0 | M10: =+G12 -> Total Source of Funds | N10: =+I12 -> 1527
B11: =+B78 -> Total Miscellaneous | C11: =+C78 -> 730
B12: =+"Total "&A4 -> Total Expenses | C12: =SUM(C5:C11) -> 1527 | G12: =+"Total "&E4 -> Total Source of Funds | I12: =SUM(I5:I11) -> 1527
L13: =+A4 -> Expenses
M14: =+B5 -> Total Site | N14: 342
M15: Total Decorations | N15: 0
M16: Total Publicity | N16: 0
A17: Site | C17: Estimated | E17: Admissions-Ambassadors | I17: Estimated | M17: Total Refreshments | N17: 380
B18: Room and hall fees | F18: Estimated # | G18: what | H18: unit price | M18: Total Program | N18: 75
B19: Site staff | F19: =IF(BUDGET!I2>0,BUDGET!I2,"") -> 15 | G19: =MID(CELL("filename",A1),IF(ISNUMBER(FIND("]",CELL("filename",A1))),FIND("]",CELL("filename",A1))+1,FIND("#$",CELL("filename",A1))+2),31) -> Omega Park | H19: =IF(F19="",0,(C12-I30-I40)/F19) -> 91.66666667 | I19: =IF(F19<>"",+H19*F19,0) -> 1375 | M19: Total Prizes | N19: 0
B20: Equipment | F20: =+"Total "&E17 -> Total Admissions-Ambassadors | I20: =+I19 -> 1375 | M20: Total Miscellaneous | N20: 730
B21: Tables and chairs | M21: Total Expenses | N21: 1527
B22: Omega Park Entrance Fee | C22: =(F19+F24)*18 -> 342 | E22: Admissions-Hosts
B23: blank | F23: Estimated # | G23: what | H23: unit price | L23: Net Source and Use of Funds | N23: =+N10-N21 -> 0
B24: =+"Total "&A17 -> Total Site | C24: =SUM(C17:C23) -> 342 | F24: 4 | G24: Omega Park Entrance Fee | H24: 18 | I24: =+H24*F24 -> 72
F25: 4 | G25: Lunch | H25: 20 | I25: 80
A26: Decorations | I26: 0
B27: Flowers | I27: 0
B28: Candles | I28: 0
B29: Lighting | I29: 0
B30: Balloons | F30: =+"Total "&E22 -> Total Admissions-Hosts | I30: =SUM(I24:I29) -> 152
B31: Paper supplies
B32: blank | E32: Miscellaneous Source of Funds
B33: =+"Total "&A26 -> Total Decorations | C33: =SUM(C26:C32) -> 0 | F33: Estimated # | G33: what | H33: unit price
I34: =+H34*F34 -> 0
A35: Publicity | I35: 0
B36: Graphics work | I36: 0
B37: Photocopying/Printing | I37: 0
B38: Postage | I38: 0
B39: blank | I39: 0
B40: blank | F40: =+"Total "&E32 -> Total Miscellaneous Source of Funds | I40: =SUM(I34:I39) -> 0
B41: blank
B42: =+"Total "&A35 -> Total Publicity | C42: =SUM(C35:C41) -> 0
A44: Refreshments
B45: Lunch | C45: =(F19+F25)*20 -> 380
B46: Drinks
B47: Linens
B48: Staff and gratuities
B49: blank
B50: blank
B51: =+"Total "&A44 -> Total Refreshments | C51: =SUM(C44:C50) -> 380
A53: Program
B54: Performers
B55: Speakers
B56: Travel
B57: Hotel
B58: Guide | C58: 75
B59: blank
B60: =+"Total "&A53 -> Total Program | C60: =SUM(C53:C59) -> 75
A62: Prizes
B63: Ribbons/Plaques/Trophies
B64: Gifts
B65: blank
B66: blank
B67: blank
B68: blank
B69: =+"Total "&A62 -> Total Prizes | C69: =SUM(C62:C68) -> 0
A71: Miscellaneous
B72: Telephone
B73: Transportation | C73: 700
B74: Stationery supplies
B75: Fax services
B76: Bus Driver Gratuities | C76: =F19*2 -> 30
B77: blank
B78: =+"Total "&A71 -> Total Miscellaneous | C78: =SUM(C71:C77) -> 730

Sheet Parliament
B1: 2020-02-11 | E1: In cell B1, enter the date in the format: day month year, such as: 25 Oct 2018.
B2: =IF(ISBLANK(B1),G19,IF(TYPE(B1)=1,G19&" - "&TEXT(B1,"ddd")&", "&TEXT(B1,"dd mmm yyyy"),"Above date is invalid")) -> Parliament - Tue, 11 Feb 2020 | H2: ="In cell B2, to change the event name ''"&G19&""", rename the tab" -> In cell B2, to change the event name ''Parliament", rename the tab
A4: Expenses | C4: Estimated $ | E4: Source of Funds | I4: Estimated $ | K4: Summary - Source and Use of Funds
B5: =+B24 -> Total Site | C5: =+C24 -> 0 | G5: =+F20 -> Total Admissions-Ambassadors | I5: =+I20 -> 150
B6: =+B33 -> Total Decorations | C6: =+C33 -> 0 | G6: =+F30 -> Total Admissions-Hosts | I6: =+I30 -> 0 | L6: =+E4 -> Source of Funds | N6: Estimated $
B7: =+B42 -> Total Publicity | C7: =+C42 -> 0 | G7: =+F40 -> Total Miscellaneous Source of Funds | I7: =+I40 -> 0 | M7: =+G5 -> Total Admissions-Ambassadors | N7: =+I5 -> 150
B8: =+B51 -> Total Refreshments | C8: =+C51 -> 150 | M8: =+G6 -> Total Admissions-Hosts | N8: =+I6 -> 0
B9: =+B60 -> Total Program | C9: =+C60 -> 0 | M9: =+G7 -> Total Miscellaneous Source of Funds | N9: =+I7 -> 0
B10: =+B69 -> Total Prizes | C10: =+C69 -> 0 | M10: =+G12 -> Total Source of Funds | N10: =+I12 -> 150
B11: =+B78 -> Total Miscellaneous | C11: =+C78 -> 0
B12: =+"Total "&A4 -> Total Expenses | C12: =SUM(C5:C11) -> 150 | G12: =+"Total "&E4 -> Total Source of Funds | I12: =SUM(I5:I11) -> 150
L13: =+A4 -> Expenses
M14: =+B5 -> Total Site | N14: 0
M15: Total Decorations | N15: 0
M16: Total Publicity | N16: 0
A17: Site | C17: Estimated | E17: Admissions-Ambassadors | I17: Estimated | M17: Total Refreshments | N17: 150
B18: Room and hall fees | F18: Estimated # | G18: what | H18: unit price | M18: Total Program | N18: 0
B19: Site staff | F19: =IF(BUDGET!I2>0,BUDGET!I2,"") -> 15 | G19: =MID(CELL("filename",A1),IF(ISNUMBER(FIND("]",CELL("filename",A1))),FIND("]",CELL("filename",A1))+1,FIND("#$",CELL("filename",A1))+2),31) -> Parliament | H19: =IF(F19="",0,(C12-I30-I40)/F19) -> 10 | I19: =IF(F19<>"",+H19*F19,0) -> 150 | M19: Total Prizes | N19: 0
B20: Equipment | F20: =+"Total "&E17 -> Total Admissions-Ambassadors | I20: =+I19 -> 150 | M20: Total Miscellaneous | N20: 0
B21: Tables and chairs | M21: Total Expenses | N21: 150
B22: blank | E22: Admissions-Hosts
B23: blank | F23: Estimated # | G23: what | H23: unit price | L23: Net Source and Use of Funds | N23: =+N10-N21 -> 0
B24: =+"Total "&A17 -> Total Site | C24: =SUM(C17:C23) -> 0 | I24: =+H24*F24 -> 0
I25: 0
A26: Decorations | I26: 0
B27: Flowers | I27: 0
B28: Candles | I28: 0
B29: Lighting | I29: 0
B30: Balloons | F30: =+"Total "&E22 -> Total Admissions-Hosts | I30: =SUM(I24:I29) -> 0
B31: Paper supplies
B32: blank | E32: Miscellaneous Source of Funds
B33: =+"Total "&A26 -> Total Decorations | C33: =SUM(C26:C32) -> 0 | F33: Estimated # | G33: what | H33: unit price
I34: =+H34*F34 -> 0
A35: Publicity | I35: 0
B36: Graphics work | I36: 0
B37: Photocopying/Printing | I37: 0
B38: Postage | I38: 0
B39: blank | I39: 0
B40: blank | F40: =+"Total "&E32 -> Total Miscellaneous Source of Funds | I40: =SUM(I34:I39) -> 0
B41: blank
B42: =+"Total "&A35 -> Total Publicity | C42: =SUM(C35:C41) -> 0
A44: Refreshments
B45: Lunch-Snack | C45: =F19*10 -> 150
B46: Drinks
B47: Linens
B48: Staff and gratuities
B49: blank
B50: blank
B51: =+"Total "&A44 -> Total Refreshments | C51: =SUM(C44:C50) -> 150
A53: Program
B54: Performers
B55: Speakers
B56: Travel
B57: Hotel
B58: blank
B59: blank
B60: =+"Total "&A53 -> Total Program | C60: =SUM(C53:C59) -> 0
A62: Prizes
B63: Ribbons/Plaques/Trophies
B64: Gifts
B65: blank
B66: blank
B67: blank
B68: blank
B69: =+"Total "&A62 -> Total Prizes | C69: =SUM(C62:C68) -> 0
A71: Miscellaneous
B72: Telephone
B73: Transportation
B74: Stationery supplies
B75: Fax services
B76: blank
B77: blank
B78: =+"Total "&A71 -> Total Miscellaneous | C78: =SUM(C71:C77) -> 0

Sheet Event 8
E1: In cell B1, enter the date in the format: day month year, such as: 25 Oct 2018.
B2: =IF(ISBLANK(B1),G19,IF(TYPE(B1)=1,G19&" - "&TEXT(B1,"ddd")&", "&TEXT(B1,"dd mmm yyyy"),"Above date is invalid")) -> Event 8 | H2: ="In cell B2, to change the event name ''"&G19&""", rename the tab" -> In cell B2, to change the event name ''Event 8", rename the tab
A4: Expenses | C4: Estimated $ | E4: Source of Funds | I4: Estimated $ | K4: Summary - Source and Use of Funds
B5: =+B24 -> Total Site | C5: =+C24 -> 0 | G5: =+F20 -> Total Admissions-Ambassadors | I5: =+I20 -> 0
B6: =+B33 -> Total Decorations | C6: =+C33 -> 0 | G6: =+F30 -> Total Admissions-Hosts | I6: =+I30 -> 0 | L6: =+E4 -> Source of Funds | N6: Estimated $
B7: =+B42 -> Total Publicity | C7: =+C42 -> 0 | G7: =+F40 -> Total Miscellaneous Source of Funds | I7: =+I40 -> 0 | M7: =+G5 -> Total Admissions-Ambassadors | N7: =+I5 -> 0
B8: =+B51 -> Total Refreshments | C8: =+C51 -> 0 | M8: =+G6 -> Total Admissions-Hosts | N8: =+I6 -> 0
B9: =+B60 -> Total Program | C9: =+C60 -> 0 | M9: =+G7 -> Total Miscellaneous Source of Funds | N9: =+I7 -> 0
B10: =+B69 -> Total Prizes | C10: =+C69 -> 0 | M10: =+G12 -> Total Source of Funds | N10: =+I12 -> 0
B11: =+B78 -> Total Miscellaneous | C11: =+C78 -> 0
B12: =+"Total "&A4 -> Total Expenses | C12: =SUM(C5:C11) -> 0 | G12: =+"Total "&E4 -> Total Source of Funds | I12: =SUM(I5:I11) -> 0
L13: =+A4 -> Expenses
M14: =+B5 -> Total Site | N14: 0
M15: Total Decorations | N15: 0
M16: Total Publicity | N16: 0
A17: Site | C17: Estimated | E17: Admissions-Ambassadors | I17: Estimated | M17: Total Refreshments | N17: 0
B18: Room and hall fees | F18: Estimated # | G18: what | H18: unit price | M18: Total Program | N18: 0
B19: Site staff | F19: =IF(BUDGET!I2>0,BUDGET!I2,"") -> 15 | G19: =MID(CELL("filename",A1),IF(ISNUMBER(FIND("]",CELL("filename",A1))),FIND("]",CELL("filename",A1))+1,FIND("#$",CELL("filename",A1))+2),31) -> Event 8 | H19: =IF(F19="",0,(C12-I30-I40)/F19) -> 0 | I19: =IF(F19<>"",+H19*F19,0) -> 0 | M19: Total Prizes | N19: 0
B20: Equipment | F20: =+"Total "&E17 -> Total Admissions-Ambassadors | I20: =+I19 -> 0 | M20: Total Miscellaneous | N20: 0
B21: Tables and chairs | M21: Total Expenses | N21: 0
B22: blank | E22: Admissions-Hosts
B23: blank | F23: Estimated # | G23: what | H23: unit price | L23: Net Source and Use of Funds | N23: =+N10-N21 -> 0
B24: =+"Total "&A17 -> Total Site | C24: =SUM(C17:C23) -> 0 | I24: =+H24*F24 -> 0
I25: 0
A26: Decorations | I26: 0
B27: Flowers | I27: 0
B28: Candles | I28: 0
B29: Lighting | I29: 0
B30: Balloons | F30: =+"Total "&E22 -> Total Admissions-Hosts | I30: =SUM(I24:I29) -> 0
B31: Paper supplies
B32: blank | E32: Miscellaneous Source of Funds
B33: =+"Total "&A26 -> Total Decorations | C33: =SUM(C26:C32) -> 0 | F33: Estimated # | G33: what | H33: unit price
I34: =+H34*F34 -> 0
A35: Publicity | I35: 0
B36: Graphics work | I36: 0
B37: Photocopying/Printing | I37: 0
B38: Postage | I38: 0
B39: blank | I39: 0
B40: blank | F40: =+"Total "&E32 -> Total Miscellaneous Source of Funds | I40: =SUM(I34:I39) -> 0
B41: blank
B42: =+"Total "&A35 -> Total Publicity | C42: =SUM(C35:C41) -> 0
A44: Refreshments
B45: Food
B46: Drinks
B47: Linens
B48: Staff and gratuities
B49: blank
B50: blank
B51: =+"Total "&A44 -> Total Refreshments | C51: =SUM(C44:C50) -> 0
A53: Program
B54: Performers
B55: Speakers
B56: Travel
B57: Hotel
B58: blank
B59: blank
B60: =+"Total "&A53 -> Total Program | C60: =SUM(C53:C59) -> 0
A62: Prizes
B63: Ribbons/Plaques/Trophies
B64: Gifts
B65: blank
B66: blank
B67: blank
B68: blank
B69: =+"Total "&A62 -> Total Prizes | C69: =SUM(C62:C68) -> 0
A71: Miscellaneous
B72: Telephone
B73: Transportation
B74: Stationery supplies
B75: Fax services
B76: blank
B77: blank
B78: =+"Total "&A71 -> Total Miscellaneous | C78: =SUM(C71:C77) -> 0

Sheet Farewell
B1: 2020-02-11 | E1: In cell B1, enter the date in the format: day month year, such as: 25 Oct 2018.
B2: =IF(ISBLANK(B1),G19,IF(TYPE(B1)=1,G19&" - "&TEXT(B1,"ddd")&", "&TEXT(B1,"dd mmm yyyy"),"Above date is invalid")) -> Farewell - Tue, 11 Feb 2020 | H2: ="In cell B2, to change the event name ''"&G19&""", rename the tab" -> In cell B2, to change the event name ''Farewell", rename the tab
A4: Expenses | C4: Estimated $ | E4: Source of Funds | I4: Estimated $ | K4: Summary - Source and Use of Funds
B5: =+B24 -> Total Site | C5: =+C24 -> 0 | G5: =+F20 -> Total Admissions-Ambassadors | I5: =+I20 -> 600
B6: =+B33 -> Total Decorations | C6: =+C33 -> 0 | G6: =+F30 -> Total Admissions-Hosts | I6: =+I30 -> 600 | L6: =+E4 -> Source of Funds | N6: Estimated $
B7: =+B42 -> Total Publicity | C7: =+C42 -> 0 | G7: =+F40 -> Total Miscellaneous Source of Funds | I7: =+I40 -> 0 | M7: =+G5 -> Total Admissions-Ambassadors | N7: =+I5 -> 600
B8: =+B51 -> Total Refreshments | C8: =+C51 -> 1200 | M8: =+G6 -> Total Admissions-Hosts | N8: =+I6 -> 600
B9: =+B60 -> Total Program | C9: =+C60 -> 0 | M9: =+G7 -> Total Miscellaneous Source of Funds | N9: =+I7 -> 0
B10: =+B69 -> Total Prizes | C10: =+C69 -> 0 | M10: =+G12 -> Total Source of Funds | N10: =+I12 -> 1200
B11: =+B78 -> Total Miscellaneous | C11: =+C78 -> 0
B12: =+"Total "&A4 -> Total Expenses | C12: =SUM(C5:C11) -> 1200 | G12: =+"Total "&E4 -> Total Source of Funds | I12: =SUM(I5:I11) -> 1200
L13: =+A4 -> Expenses
M14: =+B5 -> Total Site | N14: =+C5 -> 0
M15: Total Decorations | N15: 0
M16: Total Publicity | N16: 0
A17: Site | C17: Estimated | E17: Admissions-Ambassadors | I17: Estimated | M17: Total Refreshments | N17: 1200
B18: Room and hall fees | F18: Estimated # | G18: what | H18: unit price | M18: Total Program | N18: 0
B19: Site staff | F19: =IF(BUDGET!I2>0,BUDGET!I2,"") -> 15 | G19: =MID(CELL("filename",A1),IF(ISNUMBER(FIND("]",CELL("filename",A1))),FIND("]",CELL("filename",A1))+1,FIND("#$",CELL("filename",A1))+2),31) -> Farewell | H19: =IF(F19="",0,(C12-I30-I40)/F19) -> 40 | I19: =IF(F19<>"",+H19*F19,0) -> 600 | M19: Total Prizes | N19: 0
B20: Equipment | F20: =+"Total "&E17 -> Total Admissions-Ambassadors | I20: =+I19 -> 600 | M20: Total Miscellaneous | N20: 0
B21: Tables and chairs | M21: Total Expenses | N21: 1200
B22: blank | E22: Admissions-Hosts
B23: blank | F23: Estimated # | G23: what | H23: unit price | L23: Net Source and Use of Funds | N23: =+N10-N21 -> 0
B24: =+"Total "&A17 -> Total Site | C24: =SUM(C17:C23) -> 0 | F24: 15 | G24: Food | H24: 40 | I24: =+H24*F24 -> 600
I25: 0
A26: Decorations | I26: 0
B27: Flowers | I27: 0
B28: Candles | I28: 0
B29: Lighting | I29: 0
B30: Balloons | F30: =+"Total "&E22 -> Total Admissions-Hosts | I30: =SUM(I24:I29) -> 600
B31: Paper supplies
B32: blank | E32: Miscellaneous Source of Funds
B33: =+"Total "&A26 -> Total Decorations | C33: =SUM(C26:C32) -> 0 | F33: Estimated # | G33: what | H33: unit price
I34: =+H34*F34 -> 0
A35: Publicity | I35: 0
B36: Graphics work | I36: 0
B37: Photocopying/Printing | I37: 0
B38: Postage | I38: 0
B39: blank | I39: 0
B40: blank | F40: =+"Total "&E32 -> Total Miscellaneous Source of Funds | I40: =SUM(I34:I39) -> 0
B41: blank
B42: =+"Total "&A35 -> Total Publicity | C42: =SUM(C35:C41) -> 0
A44: Refreshments
B45: Food | C45: =(F19+F24)*40 -> 1200
B46: Drinks
B47: Linens
B48: Staff and gratuities
B49: blank
B50: blank
B51: =+"Total "&A44 -> Total Refreshments | C51: =SUM(C44:C50) -> 1200
A53: Program
B54: Performers
B55: Speakers
B56: Travel
B57: Hotel
B58: blank
B59: blank
B60: =+"Total "&A53 -> Total Program | C60: =SUM(C53:C59) -> 0
A62: Prizes
B63: Ribbons/Plaques/Trophies
B64: Gifts
B65: blank
B66: blank
B67: blank
B68: blank
B69: =+"Total "&A62 -> Total Prizes | C69: =SUM(C62:C68) -> 0
A71: Miscellaneous
B72: Telephone
B73: Transportation
B74: Stationery supplies
B75: Fax services
B76: blank
B77: blank
B78: =+"Total "&A71 -> Total Miscellaneous | C78: =SUM(C71:C77) -> 0

Sheet SUMMARY-SOURCE & USE OF FUNDS
A1: Summary - Source and Use of Funds
B3: Source of Funds | D3: Estimated $ | E3: Actual $ | F3: Variance
C4: Ambassador Receipts | D4: =IF(BUDGET!I40="",0,BUDGET!I40) -> 5405.86 | E4: =Journal!F84 -> 5285.8 | F4: =ROUND(E4-D4,2) -> -120.06
C5: Host Receipts | D5: =IF(BUDGET!L40="",0,BUDGET!L40) -> 1280 | E5: =Journal!F85 -> 1280 | F5: =ROUND(E5-D5,2) -> 0
C6: Miscellaneous Receipts | D6: =IF(BUDGET!O40="",0,BUDGET!O40) -> 0 | E6: =Journal!F86 -> 0 | F6: 0
C7: Total Source of Funds | D7: =SUM(D4:D6) -> 6685.86 | E7: =SUM(E4:E6) -> 6565.8 | F7: =ROUND(SUM(F4:F6),2) -> -120.06
B10: Expenses
C11: =+BUDGET!B6 -> Welcome | D11: =IF(BUDGET!F6="",0,BUDGET!F6) -> 498.88 | E11: =-Journal!F87 -> 498.89 | F11: =ROUND(E11-D11,2) -> 0.01
C12: =+BUDGET!B7 -> Escapade Eskimo | D12: =IF(BUDGET!F7="",0,BUDGET!F7) -> 1555 | E12: =-Journal!F88 -> 1551.1 | F12: -3.9
C13: =+BUDGET!B8 -> Museum of History | D13: =IF(BUDGET!F8="",0,BUDGET!F8) -> 675 | E13: =-Journal!F89 -> 677.4 | F13: 2.4
C14: =+BUDGET!B9 -> Curling-Ice fishing | D14: =IF(BUDGET!F9="",0,BUDGET!F9) -> 550.98 | E14: =-Journal!F90 -> 551.97 | F14: 0.99
C15: =+BUDGET!B10 -> Winterlude | D15: =IF(BUDGET!F10="",0,BUDGET!F10) -> 150 | E15: =-Journal!F91 -> 150 | F15: 0
C16: =+BUDGET!B11 -> Omega Park | D16: =IF(BUDGET!F11="",0,BUDGET!F11) -> 1527 | E16: =-Journal!F92 -> 1529.92 | F16: 2.92
C17: =+BUDGET!B12 -> Parliament | D17: =IF(BUDGET!F12="",0,BUDGET!F12) -> 150 | E17: =-Journal!F93 -> 150 | F17: 0
C18: =+BUDGET!B13 -> Event 8 | D18: =IF(BUDGET!F13="",0,BUDGET!F13) -> 0 | E18: =-Journal!F94 -> 0 | F18: 0
C19: =+BUDGET!B14 -> Farewell | D19: =IF(BUDGET!F14="",0,BUDGET!F14) -> 1200 | E19: =-Journal!F95 -> 1200 | F19: 0
C20: =+BUDGET!B15 -> Gift Bags | D20: =IF(BUDGET!F15="",0,BUDGET!F15) -> 120 | E20: =-Journal!F96 -> 138.75 | F20: 18.75
C21: =+BUDGET!B16 -> Photographs | D21: =IF(BUDGET!F16="",0,BUDGET!F16) -> 0 | E21: =-Journal!F97 -> 0 | F21: 0
C22: =+BUDGET!B17 -> Parking | D22: =IF(BUDGET!F17="",0,BUDGET!F17) -> 0 | E22: =-Journal!F98 -> 0 | F22: 0
C23: =+BUDGET!B18 -> Host Refund | D23: =IF(BUDGET!F18="",0,BUDGET!F18) -> 0 | E23: =-Journal!F99 -> 0 | F23: 0
C24: =+BUDGET!B21 -> FFI Fees | D24: =IF(BUDGET!F21="",0,BUDGET!F21) -> 0 | E24: =-Journal!F100 -> 0 | F24: 0
C25: =+BUDGET!B22 -> Hosting Fees | D25: =IF(BUDGET!F22="",0,BUDGET!F22) -> 0 | E25: =-Journal!F101 -> 0 | F25: 0
C26: =+BUDGET!B23 -> Post Journey Party | D26: =IF(BUDGET!F23="",0,BUDGET!F23) -> 0 | E26: =-Journal!F102 -> 0 | F26: 0
C27: =+BUDGET!B24 -> Wire Transfer Fee | D27: =IF(BUDGET!F24="",0,BUDGET!F24) -> 14 | E27: =-Journal!F103 -> 14 | F27: 0
C28: =+BUDGET!B25 -> Ambassador Booklets | D28: =IF(BUDGET!F25="",0,BUDGET!F25) -> 37.5 | E28: =-Journal!F104 -> 49.18 | F28: 11.68
C29: =+BUDGET!B26 -> Host Booklets | D29: =IF(BUDGET!F26="",0,BUDGET!F26) -> 0 | E29: =-Journal!F105 -> 0 | F29: 0
C30: =+BUDGET!B27 -> Club Gift | D30: =IF(BUDGET!F27="",0,BUDGET!F27) -> 15 | E30: =-Journal!F106 -> 18.32 | F30: 3.32
C31: =+BUDGET!B28 -> Bank Fees | D31: =IF(BUDGET!F28="",0,BUDGET!F28) -> 12.5 | E31: =-Journal!F107 -> 10 | F31: -2.5
C32: =+BUDGET!B29 -> Committee Expenses | D32: =IF(BUDGET!F29="",0,BUDGET!F29) -> 0 | E32: =-Journal!F108 -> 2 | F32: 2
C33: =+BUDGET!B30 -> Contingency | D33: =IF(BUDGET!F30="",0,BUDGET!F30) -> 150 | E33: =-Journal!F109 -> 0 | F33: -150
C34: =+BUDGET!B31 -> Ambassador Refund | D34: =IF(BUDGET!F31="",0,BUDGET!F31) -> 0 | E34: =-Journal!F110 -> 0 | F34: 0
C35: =+BUDGET!B32 -> Surplus to FFO | D35: =IF(BUDGET!F32="",0,BUDGET!F32) -> 0 | E35: =-Journal!F111 -> 1.67 | F35: 1.67
C36: =+BUDGET!B33 -> Memory Stick | D36: =IF(BUDGET!F33="",0,BUDGET!F33) -> 30 | E36: =-Journal!F112 -> 22.6 | F36: -7.4
C37: =+BUDGET!B34 -> Exp blank 2 | D37: =IF(BUDGET!F34="",0,BUDGET!F34) -> 0 | E37: =-Journal!F113 -> 0 | F37: 0
C38: =+BUDGET!B35 -> Exp blank 3 | D38: =IF(BUDGET!F35="",0,BUDGET!F35) -> 0 | E38: =-Journal!F114 -> 0 | F38: 0
C39: =+BUDGET!B36 -> Exp blank 4 | D39: =IF(BUDGET!F36="",0,BUDGET!F36) -> 0 | E39: =-Journal!F115 -> 0 | F39: 0
C40: =+BUDGET!B37 -> Exp blank 5 | D40: =IF(BUDGET!F37="",0,BUDGET!F37) -> 0 | E40: =-Journal!F116 -> 0 | F40: 0
C41: =+BUDGET!B38 -> Exp blank 6 | D41: =IF(BUDGET!F38="",0,BUDGET!F38) -> 0 | E41: =-Journal!F117 -> 0 | F41: 0
C42: =+BUDGET!B39 -> Exp blank 7 | D42: =IF(BUDGET!F39="",0,BUDGET!F39) -> 0 | E42: =-Journal!F118 -> 0 | F42: 0
C43: Total Expenses | D43: =SUM(D11:D42) -> 6685.86 | E43: =SUM(E11:E42) -> 6565.8 | F43: =ROUND(SUM(F11:F42),2) -> -120.06
B45: Net Source and Use of Funds | D45: =+D7-D43 -> 0 | E45: =+E7-E43 -> 0 | F45: =ROUND(+F7-F43,2) -> 0
